Body Name,Body,Date,Department,Beneficiary,Summary of Purpose (SeRCOP),Amount,Merchant Code,Transaction Number
Sandwell Metropolitan Borough Council,http://www.sandwell.gov.uk/info/200202/performance_and_spending/3233/government_procurement_cards,04-Jan-2019,Total Housing Revenue Account,Amazon.co.uk MB1X63FN4,Total Housing Revenue Account,18.72,ICT,1819Q04_PC00001
Sandwell Metropolitan Borough Council,http://www.sandwell.gov.uk/info/200202/performance_and_spending/3233/government_procurement_cards,04-Jan-2019,Regeneration & Growth,SCREWFIX DIRECT,Regeneration And The Economy,22.47,Materials & Consumables,1819Q04_PC00002
Sandwell Metropolitan Borough Council,http://www.sandwell.gov.uk/info/200202/performance_and_spending/3233/government_procurement_cards,04-Jan-2019,Regeneration & Growth,AMZN MKTP UK MB94R4FB4,Regeneration And The Economy,1.5,Printing Stationery&Gen Office,1819Q04_PC00003
Sandwell Metropolitan Borough Council,http://www.sandwell.gov.uk/info/200202/performance_and_spending/3233/government_procurement_cards,04-Jan-2019,Regeneration & Growth,AMZN MKTP UK MB70A7FY4,Regeneration And The Economy,3.32,Printing Stationery&Gen Office,1819Q04_PC00004
Sandwell Metropolitan Borough Council,http://www.sandwell.gov.uk/info/200202/performance_and_spending/3233/government_procurement_cards,04-Jan-2019,Adult Social Care Health and Wellbeing - Total,AMZN Mktp UK MB76Q84A4,Total Adult Social Care,33.29,Printing Stationery&Gen Office,1819Q04_PC00005
Sandwell Metropolitan Borough Council,http://www.sandwell.gov.uk/info/200202/performance_and_spending/3233/government_procurement_cards,04-Jan-2019,Adult Social Care Health and Wellbeing - Total,Amazon.co.uk MB8FH24K4,Total Adult Social Care,15.82,ICT,1819Q04_PC00006
Sandwell Metropolitan Borough Council,http://www.sandwell.gov.uk/info/200202/performance_and_spending/3233/government_procurement_cards,04-Jan-2019,Regeneration & Growth,AMZN Mktp UK MB0V54404,Regeneration And The Economy,37.47,Printing Stationery&Gen Office,1819Q04_PC00007
Sandwell Metropolitan Borough Council,http://www.sandwell.gov.uk/info/200202/performance_and_spending/3233/government_procurement_cards,04-Jan-2019,Regeneration & Growth,POUNDLAND LTD 1729,Regeneration And The Economy,2.5,Printing Stationery&Gen Office,1819Q04_PC00008
Sandwell Metropolitan Borough Council,http://www.sandwell.gov.uk/info/200202/performance_and_spending/3233/government_procurement_cards,04-Jan-2019,Adult Social Care Health and Wellbeing - Total,SAINSBURYS SACAT0558,Public Health,4.17,Catering Equipment,1819Q04_PC00009
Sandwell Metropolitan Borough Council,http://www.sandwell.gov.uk/info/200202/performance_and_spending/3233/government_procurement_cards,04-Jan-2019,Regeneration & Growth,AMZN MKTP UK MB7CJ4C04,Regeneration And The Economy,12.02,ICT,1819Q04_PC00010
Sandwell Metropolitan Borough Council,http://www.sandwell.gov.uk/info/200202/performance_and_spending/3233/government_procurement_cards,04-Jan-2019,Housing & Communities,Amazon.co.uk MB3PZ5494,Neighbourhoods,23.32,Fixtures & Fittings,1819Q04_PC00011
Sandwell Metropolitan Borough Council,http://www.sandwell.gov.uk/info/200202/performance_and_spending/3233/government_procurement_cards,04-Jan-2019,Housing & Communities,Amazon.co.uk MB1IE54R4,Neighbourhoods,23.32,Fixtures & Fittings,1819Q04_PC00012
Sandwell Metropolitan Borough Council,http://www.sandwell.gov.uk/info/200202/performance_and_spending/3233/government_procurement_cards,04-Jan-2019,Housing & Communities,AMZN Mktp UK MB4Q74F04,Neighbourhoods,16.63,ICT,1819Q04_PC00013
Sandwell Metropolitan Borough Council,http://www.sandwell.gov.uk/info/200202/performance_and_spending/3233/government_procurement_cards,04-Jan-2019,Housing & Communities,Amazon.co.uk MB2PO7444,Neighbourhoods,23.32,Fixtures & Fittings,1819Q04_PC00014
Sandwell Metropolitan Borough Council,http://www.sandwell.gov.uk/info/200202/performance_and_spending/3233/government_procurement_cards,04-Jan-2019,Housing & Communities,Amazon.co.uk MB5PB54V4,Neighbourhoods,23.32,Fixtures & Fittings,1819Q04_PC00015
Sandwell Metropolitan Borough Council,http://www.sandwell.gov.uk/info/200202/performance_and_spending/3233/government_procurement_cards,04-Jan-2019,Resources (Inc SIU),ONLINE.OFFICEDEPOT.CO.,Assistant Chief Executive (Excl SIU),382.4,Printing Stationery&Gen Office,1819Q04_PC00016
Sandwell Metropolitan Borough Council,http://www.sandwell.gov.uk/info/200202/performance_and_spending/3233/government_procurement_cards,04-Jan-2019,Resources (Inc SIU),IKEA LIMITED,Assistant Chief Executive (Excl SIU),42,Equipment & Furniture,1819Q04_PC00017
Sandwell Metropolitan Borough Council,http://www.sandwell.gov.uk/info/200202/performance_and_spending/3233/government_procurement_cards,04-Jan-2019,Housing & Communities,AMZN Mktp UK MB2IU0OL4,Neighbourhoods,17.8,Materials & Consumables,1819Q04_PC00018
Sandwell Metropolitan Borough Council,http://www.sandwell.gov.uk/info/200202/performance_and_spending/3233/government_procurement_cards,04-Jan-2019,Resources (Inc SIU),Trainline,Assistant Chief Executive (Excl SIU),131.77,Public Transport,1819Q04_PC00019
Sandwell Metropolitan Borough Council,http://www.sandwell.gov.uk/info/200202/performance_and_spending/3233/government_procurement_cards,04-Jan-2019,Resources (Inc SIU),Trainline,Assistant Chief Executive (Excl SIU),127.7,Public Transport,1819Q04_PC00020
Sandwell Metropolitan Borough Council,http://www.sandwell.gov.uk/info/200202/performance_and_spending/3233/government_procurement_cards,07-Jan-2019,Regeneration & Growth,AMZN MKTP UK MB4NN7424,Regeneration And The Economy,344.15,ICT,1819Q04_PC00021
Sandwell Metropolitan Borough Council,http://www.sandwell.gov.uk/info/200202/performance_and_spending/3233/government_procurement_cards,07-Jan-2019,Adult Social Care Health and Wellbeing - Total,SECURITY INDUSTRY,Total Adult Social Care,183.33,Licences,1819Q04_PC00022
Sandwell Metropolitan Borough Council,http://www.sandwell.gov.uk/info/200202/performance_and_spending/3233/government_procurement_cards,07-Jan-2019,Adult Social Care Health and Wellbeing - Total,SECURITY INDUSTRY,Total Adult Social Care,183.33,Licences,1819Q04_PC00023
Sandwell Metropolitan Borough Council,http://www.sandwell.gov.uk/info/200202/performance_and_spending/3233/government_procurement_cards,07-Jan-2019,Total Housing Revenue Account,NRS-UK,Total Housing Revenue Account,779.7,Materials & Consumables,1819Q04_PC00024
Sandwell Metropolitan Borough Council,http://www.sandwell.gov.uk/info/200202/performance_and_spending/3233/government_procurement_cards,07-Jan-2019,Adult Social Care Health and Wellbeing - Total,Amazon.co.uk MB2YG7LE4,Total Adult Social Care,320.4,ICT,1819Q04_PC00025
Sandwell Metropolitan Borough Council,http://www.sandwell.gov.uk/info/200202/performance_and_spending/3233/government_procurement_cards,07-Jan-2019,Adult Social Care Health and Wellbeing - Total,SAINSBURYS SACAT 4894,Public Health,1.25,Catering Provisions,1819Q04_PC00026
Sandwell Metropolitan Borough Council,http://www.sandwell.gov.uk/info/200202/performance_and_spending/3233/government_procurement_cards,07-Jan-2019,Regeneration & Growth,AMZN MKTP UK MB0VO8L34,Regeneration And The Economy,13.29,ICT,1819Q04_PC00027
Sandwell Metropolitan Borough Council,http://www.sandwell.gov.uk/info/200202/performance_and_spending/3233/government_procurement_cards,07-Jan-2019,Housing & Communities,WWW.FTA.CO.UK,Neighbourhoods,132,Printing Stationery&Gen Office,1819Q04_PC00028
Sandwell Metropolitan Borough Council,http://www.sandwell.gov.uk/info/200202/performance_and_spending/3233/government_procurement_cards,07-Jan-2019,Total Housing Revenue Account,WWW.PCWB.COM,Total Housing Revenue Account,36.36,Materials & Consumables,1819Q04_PC00029
Sandwell Metropolitan Borough Council,http://www.sandwell.gov.uk/info/200202/performance_and_spending/3233/government_procurement_cards,07-Jan-2019,Adult Social Care Health and Wellbeing - Total,ESSENTRA PACKAGING,Total Adult Social Care,204,ICT,1819Q04_PC00030
Sandwell Metropolitan Borough Council,http://www.sandwell.gov.uk/info/200202/performance_and_spending/3233/government_procurement_cards,07-Jan-2019,Housing & Communities,AQUAID FRANCHISING LTD,Neighbourhoods,70,Catering Provisions,1819Q04_PC00031
Sandwell Metropolitan Borough Council,http://www.sandwell.gov.uk/info/200202/performance_and_spending/3233/government_procurement_cards,07-Jan-2019,Regeneration & Growth,AMZN MKTP UK MB3HK14B4,Regeneration And The Economy,12.49,ICT,1819Q04_PC00032
Sandwell Metropolitan Borough Council,http://www.sandwell.gov.uk/info/200202/performance_and_spending/3233/government_procurement_cards,07-Jan-2019,Housing & Communities,HIGHFIELD HOUSE HO,Neighbourhoods,33.33,Rents,1819Q04_PC00033
Sandwell Metropolitan Borough Council,http://www.sandwell.gov.uk/info/200202/performance_and_spending/3233/government_procurement_cards,07-Jan-2019,Adult Social Care Health and Wellbeing - Total,ONLINE.OFFICEDEPOT.CO.,Total Adult Social Care,54.6,Ind. Emp Exp-Staff Dev&Training,1819Q04_PC00034
Sandwell Metropolitan Borough Council,http://www.sandwell.gov.uk/info/200202/performance_and_spending/3233/government_procurement_cards,07-Jan-2019,Resources (Inc SIU),SAINSBURYS 0558,Assistant Chief Executive (Excl SIU),52,Printing Stationery&Gen Office,1819Q04_PC00035
Sandwell Metropolitan Borough Council,http://www.sandwell.gov.uk/info/200202/performance_and_spending/3233/government_procurement_cards,07-Jan-2019,Regeneration & Growth,Trainline,Regeneration And The Economy,52.3,Public Transport,1819Q04_PC00036
Sandwell Metropolitan Borough Council,http://www.sandwell.gov.uk/info/200202/performance_and_spending/3233/government_procurement_cards,07-Jan-2019,Housing & Communities,AMZN Mktp UK MB7UK3L74,Neighbourhoods,3.99,Rent Allowances Local Scheme,1819Q04_PC00037
Sandwell Metropolitan Borough Council,http://www.sandwell.gov.uk/info/200202/performance_and_spending/3233/government_procurement_cards,07-Jan-2019,Housing & Communities,Amazon Prime MB7VU7ZF4,Neighbourhoods,7.99,"Postages, Carriage & Courier Services",1819Q04_PC00038
Sandwell Metropolitan Borough Council,http://www.sandwell.gov.uk/info/200202/performance_and_spending/3233/government_procurement_cards,07-Jan-2019,Housing & Communities,AMZN Mktp UK MB0R69NK4,Neighbourhoods,6.07,Materials & Consumables,1819Q04_PC00039
Sandwell Metropolitan Borough Council,http://www.sandwell.gov.uk/info/200202/performance_and_spending/3233/government_procurement_cards,07-Jan-2019,Housing & Communities,AMZN Mktp UK MB9O19NF4,Neighbourhoods,21.14,ICT,1819Q04_PC00040
Sandwell Metropolitan Borough Council,http://www.sandwell.gov.uk/info/200202/performance_and_spending/3233/government_procurement_cards,07-Jan-2019,Resources (Inc SIU),AMZN Mktp UK MB1RC0NV4,Assistant Chief Executive (Excl SIU),10.65,Printing Stationery&Gen Office,1819Q04_PC00041
Sandwell Metropolitan Borough Council,http://www.sandwell.gov.uk/info/200202/performance_and_spending/3233/government_procurement_cards,07-Jan-2019,Childrens Services,AMZN MKTP UK MB9QV74B4,Childrens Services,22.11,Printing Stationery&Gen Office,1819Q04_PC00042
Sandwell Metropolitan Borough Council,http://www.sandwell.gov.uk/info/200202/performance_and_spending/3233/government_procurement_cards,08-Jan-2019,Resources (Inc SIU),DISPLAY STANDS LTD,Assistant Chief Executive (Excl SIU),36.73,Equipment & Furniture,1819Q04_PC00043
Sandwell Metropolitan Borough Council,http://www.sandwell.gov.uk/info/200202/performance_and_spending/3233/government_procurement_cards,08-Jan-2019,Housing & Communities,BIRMINGHAM CATERING HI,Neighbourhoods,80,Equipment & Furniture,1819Q04_PC00044
Sandwell Metropolitan Borough Council,http://www.sandwell.gov.uk/info/200202/performance_and_spending/3233/government_procurement_cards,08-Jan-2019,Total Housing Revenue Account,WWW.PCWB.COM,Total Housing Revenue Account,36.36,Materials & Consumables,1819Q04_PC00045
Sandwell Metropolitan Borough Council,http://www.sandwell.gov.uk/info/200202/performance_and_spending/3233/government_procurement_cards,08-Jan-2019,Childrens Services,ASDA GROCERIES ONLINE,Childrens Services,-0.47,Catering Provisions,1819Q04_PC00046
Sandwell Metropolitan Borough Council,http://www.sandwell.gov.uk/info/200202/performance_and_spending/3233/government_procurement_cards,08-Jan-2019,Resources (Inc SIU),ONLINE.OFFICEDEPOT.CO.,Assistant Chief Executive (Excl SIU),24.71,Printing Stationery&Gen Office,1819Q04_PC00047
Sandwell Metropolitan Borough Council,http://www.sandwell.gov.uk/info/200202/performance_and_spending/3233/government_procurement_cards,08-Jan-2019,Childrens Services,ASDA GROCERIES ONLINE,Childrens Services,72.16,Catering Provisions,1819Q04_PC00048
Sandwell Metropolitan Borough Council,http://www.sandwell.gov.uk/info/200202/performance_and_spending/3233/government_procurement_cards,08-Jan-2019,Housing & Communities,ONLINE.OFFICEDEPOT.CO.,Neighbourhoods,1.84,ICT,1819Q04_PC00049
Sandwell Metropolitan Borough Council,http://www.sandwell.gov.uk/info/200202/performance_and_spending/3233/government_procurement_cards,08-Jan-2019,Adult Social Care Health and Wellbeing - Total,TESCO STORES 2335,Total Adult Social Care,38.94,Ind. Emp Exp-Staff Dev&Training,1819Q04_PC00050
Sandwell Metropolitan Borough Council,http://www.sandwell.gov.uk/info/200202/performance_and_spending/3233/government_procurement_cards,08-Jan-2019,Adult Social Care Health and Wellbeing - Total,TESCO STORES 2335,Total Adult Social Care,66.24,Ind. Emp Exp-Staff Dev&Training,1819Q04_PC00051
Sandwell Metropolitan Borough Council,http://www.sandwell.gov.uk/info/200202/performance_and_spending/3233/government_procurement_cards,08-Jan-2019,Regeneration & Growth,Amazon.co.uk MB6GR4JB4,Regeneration And The Economy,44.57,Printing Stationery&Gen Office,1819Q04_PC00052
Sandwell Metropolitan Borough Council,http://www.sandwell.gov.uk/info/200202/performance_and_spending/3233/government_procurement_cards,08-Jan-2019,Housing & Communities,AMZN Mktp UK MB8V223F4,Neighbourhoods,99.99,Equipment & Furniture,1819Q04_PC00053
Sandwell Metropolitan Borough Council,http://www.sandwell.gov.uk/info/200202/performance_and_spending/3233/government_procurement_cards,08-Jan-2019,Regeneration & Growth,Trainline,Regeneration And The Economy,389.6,Public Transport,1819Q04_PC00054
Sandwell Metropolitan Borough Council,http://www.sandwell.gov.uk/info/200202/performance_and_spending/3233/government_procurement_cards,08-Jan-2019,Regeneration & Growth,Trainline,Regeneration And The Economy,389.6,Public Transport,1819Q04_PC00055
Sandwell Metropolitan Borough Council,http://www.sandwell.gov.uk/info/200202/performance_and_spending/3233/government_procurement_cards,08-Jan-2019,Regeneration & Growth,AMZN Mktp UK MB5CG6J94,Regeneration And The Economy,35.98,ICT,1819Q04_PC00056
Sandwell Metropolitan Borough Council,http://www.sandwell.gov.uk/info/200202/performance_and_spending/3233/government_procurement_cards,08-Jan-2019,Childrens Services,Trainline,Childrens Services,17.86,Public Transport,1819Q04_PC00057
Sandwell Metropolitan Borough Council,http://www.sandwell.gov.uk/info/200202/performance_and_spending/3233/government_procurement_cards,08-Jan-2019,Housing & Communities,HIGHFIELD HOUSE HO,Neighbourhoods,157.5,Rents,1819Q04_PC00058
Sandwell Metropolitan Borough Council,http://www.sandwell.gov.uk/info/200202/performance_and_spending/3233/government_procurement_cards,08-Jan-2019,Housing & Communities,HIGHFIELD HOUSE HO,Neighbourhoods,262.5,Rents,1819Q04_PC00059
Sandwell Metropolitan Borough Council,http://www.sandwell.gov.uk/info/200202/performance_and_spending/3233/government_procurement_cards,08-Jan-2019,Housing & Communities,HIGHFIELD HOUSE HO,Neighbourhoods,204.17,Rents,1819Q04_PC00060
Sandwell Metropolitan Borough Council,http://www.sandwell.gov.uk/info/200202/performance_and_spending/3233/government_procurement_cards,09-Jan-2019,Childrens Services,SCREWFIX STAFFORD,Childrens Services,12.15,R& M - Building Maint&Imp.,1819Q04_PC00061
Sandwell Metropolitan Borough Council,http://www.sandwell.gov.uk/info/200202/performance_and_spending/3233/government_procurement_cards,09-Jan-2019,Housing & Communities,B & Q 1276,Neighbourhoods,5.19,ICT,1819Q04_PC00062
Sandwell Metropolitan Borough Council,http://www.sandwell.gov.uk/info/200202/performance_and_spending/3233/government_procurement_cards,09-Jan-2019,Housing & Communities,SHROPSHIRE 3D PRINT LT,Neighbourhoods,34.74,ICT,1819Q04_PC00063
Sandwell Metropolitan Borough Council,http://www.sandwell.gov.uk/info/200202/performance_and_spending/3233/government_procurement_cards,09-Jan-2019,Regeneration & Growth,AMZN Mktp UK MB3V55TE4,Regeneration And The Economy,7.16,Printing Stationery&Gen Office,1819Q04_PC00064
Sandwell Metropolitan Borough Council,http://www.sandwell.gov.uk/info/200202/performance_and_spending/3233/government_procurement_cards,09-Jan-2019,Adult Social Care Health and Wellbeing - Total,COMMUNITY TRANSPORT AS,Total Adult Social Care,183.31,Printing Stationery&Gen Office,1819Q04_PC00065
Sandwell Metropolitan Borough Council,http://www.sandwell.gov.uk/info/200202/performance_and_spending/3233/government_procurement_cards,09-Jan-2019,Adult Social Care Health and Wellbeing - Total,COMMUNITY TRANSPORT AS,Total Adult Social Care,201.63,Printing Stationery&Gen Office,1819Q04_PC00066
Sandwell Metropolitan Borough Council,http://www.sandwell.gov.uk/info/200202/performance_and_spending/3233/government_procurement_cards,09-Jan-2019,Resources (Inc SIU),KAPLAN FINANCIAL LTD,Assistant Chief Executive (Excl SIU),30,Ind. Emp Exp-Staff Dev&Training,1819Q04_PC00067
Sandwell Metropolitan Borough Council,http://www.sandwell.gov.uk/info/200202/performance_and_spending/3233/government_procurement_cards,09-Jan-2019,Housing & Communities,ONLINE.OFFICEDEPOT.CO.,Neighbourhoods,28.34,Printing Stationery&Gen Office,1819Q04_PC00068
Sandwell Metropolitan Borough Council,http://www.sandwell.gov.uk/info/200202/performance_and_spending/3233/government_procurement_cards,09-Jan-2019,Resources (Inc SIU),BROMSGROVE STN SST,Assistant Chief Executive (Excl SIU),4.6,Public Transport,1819Q04_PC00069
Sandwell Metropolitan Borough Council,http://www.sandwell.gov.uk/info/200202/performance_and_spending/3233/government_procurement_cards,09-Jan-2019,Resources (Inc SIU),HMCOURTS-SERVICE.G,Assistant Chief Executive (Excl SIU),717,Council Tax,1819Q04_PC00070
Sandwell Metropolitan Borough Council,http://www.sandwell.gov.uk/info/200202/performance_and_spending/3233/government_procurement_cards,09-Jan-2019,Regeneration & Growth,AMZN Mktp UK MB1795TV4,Regeneration And The Economy,6.99,Printing Stationery&Gen Office,1819Q04_PC00071
Sandwell Metropolitan Borough Council,http://www.sandwell.gov.uk/info/200202/performance_and_spending/3233/government_procurement_cards,09-Jan-2019,Resources (Inc SIU),WWW.MONEYCLAIM.GOV,Assistant Chief Executive (Excl SIU),60,Materials & Consumables,1819Q04_PC00072
Sandwell Metropolitan Borough Council,http://www.sandwell.gov.uk/info/200202/performance_and_spending/3233/government_procurement_cards,09-Jan-2019,Resources (Inc SIU),WORCESTER FS T/O,Assistant Chief Executive (Excl SIU),4.6,Public Transport,1819Q04_PC00073
Sandwell Metropolitan Borough Council,http://www.sandwell.gov.uk/info/200202/performance_and_spending/3233/government_procurement_cards,09-Jan-2019,Resources (Inc SIU),ONLINE.OFFICEDEPOT.CO.,Assistant Chief Executive (Excl SIU),27.69,Printing Stationery&Gen Office,1819Q04_PC00074
Sandwell Metropolitan Borough Council,http://www.sandwell.gov.uk/info/200202/performance_and_spending/3233/government_procurement_cards,09-Jan-2019,Resources (Inc SIU),ONLINE.OFFICEDEPOT.CO.,Assistant Chief Executive (Excl SIU),2.64,Printing Stationery&Gen Office,1819Q04_PC00075
Sandwell Metropolitan Borough Council,http://www.sandwell.gov.uk/info/200202/performance_and_spending/3233/government_procurement_cards,09-Jan-2019,Resources (Inc SIU),KAPLAN FINANCIAL LTD,Assistant Chief Executive (Excl SIU),63,Ind. Emp Exp-Staff Dev&Training,1819Q04_PC00076
Sandwell Metropolitan Borough Council,http://www.sandwell.gov.uk/info/200202/performance_and_spending/3233/government_procurement_cards,09-Jan-2019,Childrens Services,TRAVIS PERKINS,Childrens Services,67.8,R& M - Building Maint&Imp.,1819Q04_PC00077
Sandwell Metropolitan Borough Council,http://www.sandwell.gov.uk/info/200202/performance_and_spending/3233/government_procurement_cards,09-Jan-2019,Resources (Inc SIU),Trainline,Assistant Chief Executive (Excl SIU),17.45,Public Transport,1819Q04_PC00078
Sandwell Metropolitan Borough Council,http://www.sandwell.gov.uk/info/200202/performance_and_spending/3233/government_procurement_cards,10-Jan-2019,Housing & Communities,SOVEREIGN,Neighbourhoods,8.4,Printing Stationery&Gen Office,1819Q04_PC00079
Sandwell Metropolitan Borough Council,http://www.sandwell.gov.uk/info/200202/performance_and_spending/3233/government_procurement_cards,10-Jan-2019,Regeneration & Growth,RIBA SERVICES,Regeneration And The Economy,425,Ind. Emp Exp-Staff Dev&Training,1819Q04_PC00080
Sandwell Metropolitan Borough Council,http://www.sandwell.gov.uk/info/200202/performance_and_spending/3233/government_procurement_cards,10-Jan-2019,Total Housing Revenue Account,Amazon.co.uk MB47Z3EZ4,Total Housing Revenue Account,35.57,ICT,1819Q04_PC00081
Sandwell Metropolitan Borough Council,http://www.sandwell.gov.uk/info/200202/performance_and_spending/3233/government_procurement_cards,10-Jan-2019,Individual School Budgets With Inclusion,Amazon.co.uk MB5JE1EY4,Individual School Budgets With Inclusion,38.11,Materials & Consumables,1819Q04_PC00082
Sandwell Metropolitan Borough Council,http://www.sandwell.gov.uk/info/200202/performance_and_spending/3233/government_procurement_cards,10-Jan-2019,Total Housing Revenue Account,AMZN MKTP UK MB1GF3EC4,Total Housing Revenue Account,20.8,Materials & Consumables,1819Q04_PC00083
Sandwell Metropolitan Borough Council,http://www.sandwell.gov.uk/info/200202/performance_and_spending/3233/government_procurement_cards,10-Jan-2019,Total Housing Revenue Account,STAFFORDSHIRE BLDS SUP,Total Housing Revenue Account,15.62,Materials & Consumables,1819Q04_PC00084
Sandwell Metropolitan Borough Council,http://www.sandwell.gov.uk/info/200202/performance_and_spending/3233/government_procurement_cards,10-Jan-2019,Housing & Communities,WILKO RETAIL LIMIT,Neighbourhoods,8.33,Fixtures & Fittings,1819Q04_PC00085
Sandwell Metropolitan Borough Council,http://www.sandwell.gov.uk/info/200202/performance_and_spending/3233/government_procurement_cards,10-Jan-2019,Housing & Communities,POUNDSTRETCHER 003,Neighbourhoods,61.56,Fixtures & Fittings,1819Q04_PC00086
Sandwell Metropolitan Borough Council,http://www.sandwell.gov.uk/info/200202/performance_and_spending/3233/government_procurement_cards,10-Jan-2019,Housing & Communities,ASDA SUPERSTORE,Neighbourhoods,1.17,Equipment & Furniture,1819Q04_PC00087
Sandwell Metropolitan Borough Council,http://www.sandwell.gov.uk/info/200202/performance_and_spending/3233/government_procurement_cards,10-Jan-2019,Resources (Inc SIU),Amazon.co.uk MB23I3ES4,Assistant Chief Executive (Excl SIU),7.48,Printing Stationery&Gen Office,1819Q04_PC00088
Sandwell Metropolitan Borough Council,http://www.sandwell.gov.uk/info/200202/performance_and_spending/3233/government_procurement_cards,10-Jan-2019,Total Housing Revenue Account,AMZN MKTP UK MB9FJ2E64,Total Housing Revenue Account,116.5,Equipment & Furniture,1819Q04_PC00089
Sandwell Metropolitan Borough Council,http://www.sandwell.gov.uk/info/200202/performance_and_spending/3233/government_procurement_cards,10-Jan-2019,Childrens Services,HANDY DRY CLEANERS,Childrens Services,205.83,Laundry,1819Q04_PC00090
Sandwell Metropolitan Borough Council,http://www.sandwell.gov.uk/info/200202/performance_and_spending/3233/government_procurement_cards,10-Jan-2019,Housing & Communities,Amazon.co.uk MB9SQ2EB4,Neighbourhoods,23.32,Equipment & Furniture,1819Q04_PC00091
Sandwell Metropolitan Borough Council,http://www.sandwell.gov.uk/info/200202/performance_and_spending/3233/government_procurement_cards,10-Jan-2019,Housing & Communities,Amazon.co.uk MB6Q43EF4,Neighbourhoods,23.32,Equipment & Furniture,1819Q04_PC00092
Sandwell Metropolitan Borough Council,http://www.sandwell.gov.uk/info/200202/performance_and_spending/3233/government_procurement_cards,10-Jan-2019,Adult Social Care Health and Wellbeing - Total,ONLINE.OFFICEDEPOT.CO.,Total Adult Social Care,36.95,Printing Stationery&Gen Office,1819Q04_PC00093
Sandwell Metropolitan Borough Council,http://www.sandwell.gov.uk/info/200202/performance_and_spending/3233/government_procurement_cards,10-Jan-2019,Resources (Inc SIU),ONLINE.OFFICEDEPOT.CO.,Assistant Chief Executive (Excl SIU),30.27,Printing Stationery&Gen Office,1819Q04_PC00094
Sandwell Metropolitan Borough Council,http://www.sandwell.gov.uk/info/200202/performance_and_spending/3233/government_procurement_cards,10-Jan-2019,Resources (Inc SIU),Virgin Trains,Assistant Chief Executive (Excl SIU),276,Public Transport,1819Q04_PC00095
Sandwell Metropolitan Borough Council,http://www.sandwell.gov.uk/info/200202/performance_and_spending/3233/government_procurement_cards,11-Jan-2019,Total Housing Revenue Account,DVLA DIGITAL TACHO,Total Housing Revenue Account,15.83,Licences&Test Fees,1819Q04_PC00096
Sandwell Metropolitan Borough Council,http://www.sandwell.gov.uk/info/200202/performance_and_spending/3233/government_procurement_cards,11-Jan-2019,Housing & Communities,POUNDLAND LTD 1576,Neighbourhoods,2.5,Protective Clothing&Uniforms,1819Q04_PC00097
Sandwell Metropolitan Borough Council,http://www.sandwell.gov.uk/info/200202/performance_and_spending/3233/government_procurement_cards,11-Jan-2019,Total Housing Revenue Account,AMZN MKTP UK MB9HW3EW4,Total Housing Revenue Account,77.49,Protective Clothing&Uniforms,1819Q04_PC00098
Sandwell Metropolitan Borough Council,http://www.sandwell.gov.uk/info/200202/performance_and_spending/3233/government_procurement_cards,11-Jan-2019,Individual School Budgets With Inclusion,PREMIER INN,Individual School Budgets With Inclusion,188.72,Conference Expenses,1819Q04_PC00099
Sandwell Metropolitan Borough Council,http://www.sandwell.gov.uk/info/200202/performance_and_spending/3233/government_procurement_cards,11-Jan-2019,Housing & Communities,Amazon.co.uk MB7GN31L4,Neighbourhoods,7.42,Materials & Consumables,1819Q04_PC00100
Sandwell Metropolitan Borough Council,http://www.sandwell.gov.uk/info/200202/performance_and_spending/3233/government_procurement_cards,11-Jan-2019,Housing & Communities,Amazon.co.uk MB0G451H4,Neighbourhoods,27.41,Materials & Consumables,1819Q04_PC00101
Sandwell Metropolitan Borough Council,http://www.sandwell.gov.uk/info/200202/performance_and_spending/3233/government_procurement_cards,11-Jan-2019,Regeneration & Growth,PAYPAL  ACTTRAVELWI,Regeneration And The Economy,91.02,Conference Expenses,1819Q04_PC00102
Sandwell Metropolitan Borough Council,http://www.sandwell.gov.uk/info/200202/performance_and_spending/3233/government_procurement_cards,11-Jan-2019,Corporate Management,Amazon.co.uk MB7Z491K4,Corporate Management,30.41,Catering Equipment,1819Q04_PC00103
Sandwell Metropolitan Borough Council,http://www.sandwell.gov.uk/info/200202/performance_and_spending/3233/government_procurement_cards,11-Jan-2019,Regeneration & Growth,AMZN Mktp UK MB9QP70X4,Regeneration And The Economy,33.32,Fixtures & Fittings,1819Q04_PC00104
Sandwell Metropolitan Borough Council,http://www.sandwell.gov.uk/info/200202/performance_and_spending/3233/government_procurement_cards,11-Jan-2019,Regeneration & Growth,Amazon.co.uk MB6S960V4,Regeneration And The Economy,21.22,Printing Stationery&Gen Office,1819Q04_PC00105
Sandwell Metropolitan Borough Council,http://www.sandwell.gov.uk/info/200202/performance_and_spending/3233/government_procurement_cards,11-Jan-2019,Resources (Inc SIU),DUNELM (SOFT FURNISHIN,Assistant Chief Executive (Excl SIU),40,Fixtures & Fittings,1819Q04_PC00106
Sandwell Metropolitan Borough Council,http://www.sandwell.gov.uk/info/200202/performance_and_spending/3233/government_procurement_cards,11-Jan-2019,Childrens Services,AMZN Mktp UK MB25211B4,Childrens Services,37.46,ICT,1819Q04_PC00107
Sandwell Metropolitan Borough Council,http://www.sandwell.gov.uk/info/200202/performance_and_spending/3233/government_procurement_cards,11-Jan-2019,Housing & Communities,AMZN Mktp UK MB6DT91J4,Neighbourhoods,8.32,Printing Stationery&Gen Office,1819Q04_PC00108
Sandwell Metropolitan Borough Council,http://www.sandwell.gov.uk/info/200202/performance_and_spending/3233/government_procurement_cards,11-Jan-2019,Housing & Communities,AMZN Mktp UK MB4A851Y4,Neighbourhoods,19.16,Printing Stationery&Gen Office,1819Q04_PC00109
Sandwell Metropolitan Borough Council,http://www.sandwell.gov.uk/info/200202/performance_and_spending/3233/government_procurement_cards,11-Jan-2019,Housing & Communities,THE VICTORIA CHIPPY,Neighbourhoods,49.5,Catering Provisions,1819Q04_PC00110
Sandwell Metropolitan Borough Council,http://www.sandwell.gov.uk/info/200202/performance_and_spending/3233/government_procurement_cards,11-Jan-2019,Adult Social Care Health and Wellbeing - Total,DORMY HOTEL,Total Adult Social Care,525,Rent Allowances Local Scheme,1819Q04_PC00111
Sandwell Metropolitan Borough Council,http://www.sandwell.gov.uk/info/200202/performance_and_spending/3233/government_procurement_cards,11-Jan-2019,Childrens Services,AMZN Mktp UK MB4A191D4,Childrens Services,8.82,Equipment & Furniture,1819Q04_PC00112
Sandwell Metropolitan Borough Council,http://www.sandwell.gov.uk/info/200202/performance_and_spending/3233/government_procurement_cards,11-Jan-2019,Regeneration & Growth,Amazon.co.uk MB09V01N4,Regeneration And The Economy,54.87,Equipment & Furniture,1819Q04_PC00113
Sandwell Metropolitan Borough Council,http://www.sandwell.gov.uk/info/200202/performance_and_spending/3233/government_procurement_cards,11-Jan-2019,Regeneration & Growth,AMZN Mktp UK MB2PC20U4,Regeneration And The Economy,109.22,Equipment & Furniture,1819Q04_PC00114
Sandwell Metropolitan Borough Council,http://www.sandwell.gov.uk/info/200202/performance_and_spending/3233/government_procurement_cards,11-Jan-2019,Regeneration & Growth,Amazon.co.uk MB8D291A4,Regeneration And The Economy,5.39,Printing Stationery&Gen Office,1819Q04_PC00115
Sandwell Metropolitan Borough Council,http://www.sandwell.gov.uk/info/200202/performance_and_spending/3233/government_procurement_cards,11-Jan-2019,Housing & Communities,KANG NEWS LTD,Neighbourhoods,4.98,Materials & Consumables,1819Q04_PC00116
Sandwell Metropolitan Borough Council,http://www.sandwell.gov.uk/info/200202/performance_and_spending/3233/government_procurement_cards,11-Jan-2019,Regeneration & Growth,AMZN Mktp UK MB0098134,Regeneration And The Economy,12.49,ICT,1819Q04_PC00117
Sandwell Metropolitan Borough Council,http://www.sandwell.gov.uk/info/200202/performance_and_spending/3233/government_procurement_cards,11-Jan-2019,Resources (Inc SIU),ONLINE.OFFICEDEPOT.CO.,Assistant Chief Executive (Excl SIU),1.82,Printing Stationery&Gen Office,1819Q04_PC00118
Sandwell Metropolitan Borough Council,http://www.sandwell.gov.uk/info/200202/performance_and_spending/3233/government_procurement_cards,11-Jan-2019,Regeneration & Growth,AMZN Mktp UK MB60T50K4,Regeneration And The Economy,24.95,Fixtures & Fittings,1819Q04_PC00119
Sandwell Metropolitan Borough Council,http://www.sandwell.gov.uk/info/200202/performance_and_spending/3233/government_procurement_cards,11-Jan-2019,Adult Social Care Health and Wellbeing - Total,Virgin Trains,Public Health,163.6,Public Transport,1819Q04_PC00120
Sandwell Metropolitan Borough Council,http://www.sandwell.gov.uk/info/200202/performance_and_spending/3233/government_procurement_cards,11-Jan-2019,Housing & Communities,ONLINE.OFFICEDEPOT.CO.,Neighbourhoods,33.78,ICT,1819Q04_PC00121
Sandwell Metropolitan Borough Council,http://www.sandwell.gov.uk/info/200202/performance_and_spending/3233/government_procurement_cards,11-Jan-2019,Resources (Inc SIU),ONLINE.OFFICEDEPOT.CO.,Assistant Chief Executive (Excl SIU),48.83,Printing Stationery&Gen Office,1819Q04_PC00122
Sandwell Metropolitan Borough Council,http://www.sandwell.gov.uk/info/200202/performance_and_spending/3233/government_procurement_cards,11-Jan-2019,Adult Social Care Health and Wellbeing - Total,SKILLS FOR CARE,Total Adult Social Care,30,Materials & Consumables,1819Q04_PC00123
Sandwell Metropolitan Borough Council,http://www.sandwell.gov.uk/info/200202/performance_and_spending/3233/government_procurement_cards,11-Jan-2019,Regeneration & Growth,AMZN Mktp UK MB4Z85134,Regeneration And The Economy,69.93,Equipment & Furniture,1819Q04_PC00124
Sandwell Metropolitan Borough Council,http://www.sandwell.gov.uk/info/200202/performance_and_spending/3233/government_procurement_cards,11-Jan-2019,Total Housing Revenue Account,POUNDLAND LTD 1729,Total Housing Revenue Account,2.5,ICT,1819Q04_PC00125
Sandwell Metropolitan Borough Council,http://www.sandwell.gov.uk/info/200202/performance_and_spending/3233/government_procurement_cards,11-Jan-2019,Childrens Services,AMZN Mktp UK MB6ZW71F4,Childrens Services,16.2,Printing Stationery&Gen Office,1819Q04_PC00126
Sandwell Metropolitan Borough Council,http://www.sandwell.gov.uk/info/200202/performance_and_spending/3233/government_procurement_cards,14-Jan-2019,Resources (Inc SIU),DRI WWW SHAREIT INFO,Assistant Chief Executive (Excl SIU),171.16,ICT,1819Q04_PC00127
Sandwell Metropolitan Borough Council,http://www.sandwell.gov.uk/info/200202/performance_and_spending/3233/government_procurement_cards,14-Jan-2019,Total Housing Revenue Account,AMZN MKTP UK MB0DS4194,Total Housing Revenue Account,20.41,ICT,1819Q04_PC00128
Sandwell Metropolitan Borough Council,http://www.sandwell.gov.uk/info/200202/performance_and_spending/3233/government_procurement_cards,14-Jan-2019,Adult Social Care Health and Wellbeing - Total,PAVILLION PUBLISHI AND,Total Adult Social Care,19,Materials & Consumables,1819Q04_PC00129
Sandwell Metropolitan Borough Council,http://www.sandwell.gov.uk/info/200202/performance_and_spending/3233/government_procurement_cards,14-Jan-2019,Childrens Services,SCREWFIX DIRECT,Childrens Services,12.97,R& M - Building Maint&Imp.,1819Q04_PC00130
Sandwell Metropolitan Borough Council,http://www.sandwell.gov.uk/info/200202/performance_and_spending/3233/government_procurement_cards,14-Jan-2019,Childrens Services,AVH SUPPLIES,Childrens Services,3,R& M - Building Maint&Imp.,1819Q04_PC00131
Sandwell Metropolitan Borough Council,http://www.sandwell.gov.uk/info/200202/performance_and_spending/3233/government_procurement_cards,14-Jan-2019,Housing & Communities,GREAT BARR SAWMILLS LT,Neighbourhoods,125.92,Grounds Maint&Improvements,1819Q04_PC00132
Sandwell Metropolitan Borough Council,http://www.sandwell.gov.uk/info/200202/performance_and_spending/3233/government_procurement_cards,14-Jan-2019,Adult Social Care Health and Wellbeing - Total,AMZN Mktp UK MB5UB3PZ4,Total Adult Social Care,18.63,ICT,1819Q04_PC00133
Sandwell Metropolitan Borough Council,http://www.sandwell.gov.uk/info/200202/performance_and_spending/3233/government_procurement_cards,14-Jan-2019,Housing & Communities,GREAT BARR SAWMILLS LT,Neighbourhoods,18.5,Grounds Maint&Improvements,1819Q04_PC00134
Sandwell Metropolitan Borough Council,http://www.sandwell.gov.uk/info/200202/performance_and_spending/3233/government_procurement_cards,14-Jan-2019,Adult Social Care Health and Wellbeing - Total,PAYPAL  ROB AT EBAY,Total Adult Social Care,18.32,Printing Stationery&Gen Office,1819Q04_PC00135
Sandwell Metropolitan Borough Council,http://www.sandwell.gov.uk/info/200202/performance_and_spending/3233/government_procurement_cards,14-Jan-2019,Housing & Communities,DARLASTON BUILDERS GRO,Neighbourhoods,63.19,Grounds Maint&Improvements,1819Q04_PC00136
Sandwell Metropolitan Borough Council,http://www.sandwell.gov.uk/info/200202/performance_and_spending/3233/government_procurement_cards,14-Jan-2019,Adult Social Care Health and Wellbeing - Total,THE KEY SAFE COMPANY,Total Adult Social Care,494.25,Equipment & Furniture,1819Q04_PC00137
Sandwell Metropolitan Borough Council,http://www.sandwell.gov.uk/info/200202/performance_and_spending/3233/government_procurement_cards,14-Jan-2019,Housing & Communities,HILLS CONCRETE LTD,Neighbourhoods,380,R& M - Building Maint&Imp.,1819Q04_PC00138
Sandwell Metropolitan Borough Council,http://www.sandwell.gov.uk/info/200202/performance_and_spending/3233/government_procurement_cards,14-Jan-2019,Total Housing Revenue Account,AMZN MKTP UK MB6H751S4,Total Housing Revenue Account,19.14,ICT,1819Q04_PC00139
Sandwell Metropolitan Borough Council,http://www.sandwell.gov.uk/info/200202/performance_and_spending/3233/government_procurement_cards,14-Jan-2019,Individual School Budgets With Inclusion,AMZN MKTP UK MB1RX0PX4,Individual School Budgets With Inclusion,49.11,Printing Stationery&Gen Office,1819Q04_PC00140
Sandwell Metropolitan Borough Council,http://www.sandwell.gov.uk/info/200202/performance_and_spending/3233/government_procurement_cards,14-Jan-2019,Individual School Budgets With Inclusion,TESCO STORES 5362,Individual School Budgets With Inclusion,18,Materials & Consumables,1819Q04_PC00141
Sandwell Metropolitan Borough Council,http://www.sandwell.gov.uk/info/200202/performance_and_spending/3233/government_procurement_cards,14-Jan-2019,Resources (Inc SIU),3C_ Birmingham City Co,Assistant Chief Executive (Excl SIU),3,Car Parking,1819Q04_PC00142
Sandwell Metropolitan Borough Council,http://www.sandwell.gov.uk/info/200202/performance_and_spending/3233/government_procurement_cards,14-Jan-2019,Resources (Inc SIU),Trainline,Assistant Chief Executive (Excl SIU),71.73,Public Transport,1819Q04_PC00143
Sandwell Metropolitan Borough Council,http://www.sandwell.gov.uk/info/200202/performance_and_spending/3233/government_procurement_cards,14-Jan-2019,Adult Social Care Health and Wellbeing - Total,ONLINE.OFFICEDEPOT.CO.,Total Adult Social Care,87.8,Printing Stationery&Gen Office,1819Q04_PC00144
Sandwell Metropolitan Borough Council,http://www.sandwell.gov.uk/info/200202/performance_and_spending/3233/government_procurement_cards,14-Jan-2019,Childrens Services,POST OFFICE COUNTER,Childrens Services,80,"Postages, Carriage & Courier Services",1819Q04_PC00145
Sandwell Metropolitan Borough Council,http://www.sandwell.gov.uk/info/200202/performance_and_spending/3233/government_procurement_cards,14-Jan-2019,Resources (Inc SIU),CIVIL JUSTICE CENT,Assistant Chief Executive (Excl SIU),770,Rent Allowances Local Scheme,1819Q04_PC00146
Sandwell Metropolitan Borough Council,http://www.sandwell.gov.uk/info/200202/performance_and_spending/3233/government_procurement_cards,14-Jan-2019,Resources Capital,AMZN MKTP UK MB6U77G34,#N/A,11.95,ICT,1819Q04_PC00147
Sandwell Metropolitan Borough Council,http://www.sandwell.gov.uk/info/200202/performance_and_spending/3233/government_procurement_cards,14-Jan-2019,Regeneration & Growth,Amazon.co.uk MB5J74GY4,Regeneration And The Economy,80.5,Printing Stationery&Gen Office,1819Q04_PC00148
Sandwell Metropolitan Borough Council,http://www.sandwell.gov.uk/info/200202/performance_and_spending/3233/government_procurement_cards,14-Jan-2019,Childrens Services,AMZN Mktp UK MB6M15GT4,Childrens Services,19.56,Printing Stationery&Gen Office,1819Q04_PC00149
Sandwell Metropolitan Borough Council,http://www.sandwell.gov.uk/info/200202/performance_and_spending/3233/government_procurement_cards,14-Jan-2019,Individual School Budgets With Inclusion,AMZN MKTP UK MB3TU6GF4,Individual School Budgets With Inclusion,10.89,Printing Stationery&Gen Office,1819Q04_PC00150
Sandwell Metropolitan Borough Council,http://www.sandwell.gov.uk/info/200202/performance_and_spending/3233/government_procurement_cards,14-Jan-2019,Resources (Inc SIU),AMZN Mktp UK MB46X7G04,Assistant Chief Executive (Excl SIU),26.24,Printing Stationery&Gen Office,1819Q04_PC00151
Sandwell Metropolitan Borough Council,http://www.sandwell.gov.uk/info/200202/performance_and_spending/3233/government_procurement_cards,14-Jan-2019,Housing & Communities,SCREWFIX WEST BROMWICH,Neighbourhoods,17.98,Fixtures & Fittings,1819Q04_PC00152
Sandwell Metropolitan Borough Council,http://www.sandwell.gov.uk/info/200202/performance_and_spending/3233/government_procurement_cards,14-Jan-2019,Housing & Communities,THE RANGE,Neighbourhoods,42.11,Materials & Consumables,1819Q04_PC00153
Sandwell Metropolitan Borough Council,http://www.sandwell.gov.uk/info/200202/performance_and_spending/3233/government_procurement_cards,14-Jan-2019,Total Housing Revenue Account,AMZN Mktp UK MB7GM9X44,Total Housing Revenue Account,128.72,Equipment & Furniture,1819Q04_PC00154
Sandwell Metropolitan Borough Council,http://www.sandwell.gov.uk/info/200202/performance_and_spending/3233/government_procurement_cards,14-Jan-2019,Resources (Inc SIU),AMZN Mktp UK MB5LX9XU4,Assistant Chief Executive (Excl SIU),30.73,Printing Stationery&Gen Office,1819Q04_PC00155
Sandwell Metropolitan Borough Council,http://www.sandwell.gov.uk/info/200202/performance_and_spending/3233/government_procurement_cards,14-Jan-2019,Regeneration & Growth,AMZN Mktp UK MB0PA1GD4,Regeneration And The Economy,9.99,Equipment & Furniture,1819Q04_PC00156
Sandwell Metropolitan Borough Council,http://www.sandwell.gov.uk/info/200202/performance_and_spending/3233/government_procurement_cards,14-Jan-2019,Childrens Services,ASDA GROCERIES ONLINE,Childrens Services,-3.76,Catering Provisions,1819Q04_PC00157
Sandwell Metropolitan Borough Council,http://www.sandwell.gov.uk/info/200202/performance_and_spending/3233/government_procurement_cards,14-Jan-2019,Childrens Services,ASDA GROCERIES ONLINE,Childrens Services,64.81,Catering Provisions,1819Q04_PC00158
Sandwell Metropolitan Borough Council,http://www.sandwell.gov.uk/info/200202/performance_and_spending/3233/government_procurement_cards,14-Jan-2019,Resources (Inc SIU),Amazon.co.uk MB7ZD6XW4,Assistant Chief Executive (Excl SIU),29.14,Printing Stationery&Gen Office,1819Q04_PC00159
Sandwell Metropolitan Borough Council,http://www.sandwell.gov.uk/info/200202/performance_and_spending/3233/government_procurement_cards,14-Jan-2019,Resources (Inc SIU),Amazon.co.uk MB10Z1XI4,Assistant Chief Executive (Excl SIU),49.99,Printing Stationery&Gen Office,1819Q04_PC00160
Sandwell Metropolitan Borough Council,http://www.sandwell.gov.uk/info/200202/performance_and_spending/3233/government_procurement_cards,14-Jan-2019,Resources (Inc SIU),Amazon.co.uk MB1675XC4,Assistant Chief Executive (Excl SIU),55.99,Printing Stationery&Gen Office,1819Q04_PC00161
Sandwell Metropolitan Borough Council,http://www.sandwell.gov.uk/info/200202/performance_and_spending/3233/government_procurement_cards,14-Jan-2019,Resources (Inc SIU),Amazon.co.uk MB5ZV8XZ4,Assistant Chief Executive (Excl SIU),37.54,Printing Stationery&Gen Office,1819Q04_PC00162
Sandwell Metropolitan Borough Council,http://www.sandwell.gov.uk/info/200202/performance_and_spending/3233/government_procurement_cards,14-Jan-2019,Childrens Services,AMZN Mktp UK MB1MD4P24,Childrens Services,4.89,Printing Stationery&Gen Office,1819Q04_PC00163
Sandwell Metropolitan Borough Council,http://www.sandwell.gov.uk/info/200202/performance_and_spending/3233/government_procurement_cards,15-Jan-2019,Housing & Communities,AMZN MKTP UK MB74H1XF4,Neighbourhoods,46.62,Employee Expenses,1819Q04_PC00164
Sandwell Metropolitan Borough Council,http://www.sandwell.gov.uk/info/200202/performance_and_spending/3233/government_procurement_cards,15-Jan-2019,Individual School Budgets With Inclusion,AMZN MKTP UK MB7402XZ4,Individual School Budgets With Inclusion,36.57,Printing Stationery&Gen Office,1819Q04_PC00165
Sandwell Metropolitan Borough Council,http://www.sandwell.gov.uk/info/200202/performance_and_spending/3233/government_procurement_cards,15-Jan-2019,Regeneration & Growth,WWW.NISBETS.COM,Regeneration And The Economy,119.98,Printing Stationery&Gen Office,1819Q04_PC00166
Sandwell Metropolitan Borough Council,http://www.sandwell.gov.uk/info/200202/performance_and_spending/3233/government_procurement_cards,15-Jan-2019,Total Housing Revenue Account,TOOLSTATION LTD,Total Housing Revenue Account,34.99,Materials & Consumables,1819Q04_PC00167
Sandwell Metropolitan Borough Council,http://www.sandwell.gov.uk/info/200202/performance_and_spending/3233/government_procurement_cards,15-Jan-2019,Housing & Communities,AMZN Mktp UK MB4EY0V04,Neighbourhoods,20.82,ICT,1819Q04_PC00168
Sandwell Metropolitan Borough Council,http://www.sandwell.gov.uk/info/200202/performance_and_spending/3233/government_procurement_cards,15-Jan-2019,Housing & Communities,HIGHFIELD HOUSE HO,Neighbourhoods,157.5,Rents,1819Q04_PC00169
Sandwell Metropolitan Borough Council,http://www.sandwell.gov.uk/info/200202/performance_and_spending/3233/government_procurement_cards,15-Jan-2019,Housing & Communities,HIGHFIELD HOUSE HO,Neighbourhoods,262.5,Rents,1819Q04_PC00170
Sandwell Metropolitan Borough Council,http://www.sandwell.gov.uk/info/200202/performance_and_spending/3233/government_procurement_cards,15-Jan-2019,Housing & Communities,HIGHFIELD HOUSE HO,Neighbourhoods,204.17,Rents,1819Q04_PC00171
Sandwell Metropolitan Borough Council,http://www.sandwell.gov.uk/info/200202/performance_and_spending/3233/government_procurement_cards,15-Jan-2019,Resources (Inc SIU),Virgin Trains,Assistant Chief Executive (Excl SIU),148.83,Public Transport,1819Q04_PC00172
Sandwell Metropolitan Borough Council,http://www.sandwell.gov.uk/info/200202/performance_and_spending/3233/government_procurement_cards,15-Jan-2019,Adult Social Care Health and Wellbeing - Total,TESCO STORES 2335,Total Adult Social Care,12.08,Ind. Emp Exp-Staff Dev&Training,1819Q04_PC00173
Sandwell Metropolitan Borough Council,http://www.sandwell.gov.uk/info/200202/performance_and_spending/3233/government_procurement_cards,15-Jan-2019,Housing & Communities,ONLINE.OFFICEDEPOT.CO.,Neighbourhoods,40.19,Printing Stationery&Gen Office,1819Q04_PC00174
Sandwell Metropolitan Borough Council,http://www.sandwell.gov.uk/info/200202/performance_and_spending/3233/government_procurement_cards,15-Jan-2019,Childrens Services,AMZN Mktp UK MB7499V64,Childrens Services,63.95,Equipment & Furniture,1819Q04_PC00175
Sandwell Metropolitan Borough Council,http://www.sandwell.gov.uk/info/200202/performance_and_spending/3233/government_procurement_cards,15-Jan-2019,Regeneration & Growth,Trainline,Regeneration And The Economy,44.46,Public Transport,1819Q04_PC00176
Sandwell Metropolitan Borough Council,http://www.sandwell.gov.uk/info/200202/performance_and_spending/3233/government_procurement_cards,15-Jan-2019,Childrens Services,SANDWELL & DUD T/O,Childrens Services,36.6,Public Transport,1819Q04_PC00177
Sandwell Metropolitan Borough Council,http://www.sandwell.gov.uk/info/200202/performance_and_spending/3233/government_procurement_cards,15-Jan-2019,Total Housing Revenue Account,Trainline,Total Housing Revenue Account,573.6,Public Transport,1819Q04_PC00178
Sandwell Metropolitan Borough Council,http://www.sandwell.gov.uk/info/200202/performance_and_spending/3233/government_procurement_cards,15-Jan-2019,Housing & Communities,Amazon.co.uk MB4SJ3VB4,Neighbourhoods,8.33,Materials & Consumables,1819Q04_PC00179
Sandwell Metropolitan Borough Council,http://www.sandwell.gov.uk/info/200202/performance_and_spending/3233/government_procurement_cards,15-Jan-2019,Childrens Services,CANALSIDE HOLDINGS LIM,Childrens Services,11,Catering Provisions,1819Q04_PC00180
Sandwell Metropolitan Borough Council,http://www.sandwell.gov.uk/info/200202/performance_and_spending/3233/government_procurement_cards,15-Jan-2019,Housing & Communities,ONLINE.OFFICEDEPOT.CO.,Neighbourhoods,30.61,Printing Stationery&Gen Office,1819Q04_PC00181
Sandwell Metropolitan Borough Council,http://www.sandwell.gov.uk/info/200202/performance_and_spending/3233/government_procurement_cards,15-Jan-2019,Childrens Services,AMZN Mktp UK MB5K75V34,Childrens Services,66.94,Equipment & Furniture,1819Q04_PC00182
Sandwell Metropolitan Borough Council,http://www.sandwell.gov.uk/info/200202/performance_and_spending/3233/government_procurement_cards,15-Jan-2019,Adult Social Care Health and Wellbeing - Total,LNER WEB SALES,Public Health,177.5,Public Transport,1819Q04_PC00183
Sandwell Metropolitan Borough Council,http://www.sandwell.gov.uk/info/200202/performance_and_spending/3233/government_procurement_cards,15-Jan-2019,Adult Social Care Health and Wellbeing - Total,ONLINE.OFFICEDEPOT.CO.,Total Adult Social Care,2.98,Printing Stationery&Gen Office,1819Q04_PC00184
Sandwell Metropolitan Borough Council,http://www.sandwell.gov.uk/info/200202/performance_and_spending/3233/government_procurement_cards,15-Jan-2019,Childrens Services,POST OFFICE COUNTER,Childrens Services,7.3,"Postages, Carriage & Courier Services",1819Q04_PC00185
Sandwell Metropolitan Borough Council,http://www.sandwell.gov.uk/info/200202/performance_and_spending/3233/government_procurement_cards,15-Jan-2019,Resources (Inc SIU),Amazon.co.uk MB5QD7VD4,Assistant Chief Executive (Excl SIU),9.94,Printing Stationery&Gen Office,1819Q04_PC00186
Sandwell Metropolitan Borough Council,http://www.sandwell.gov.uk/info/200202/performance_and_spending/3233/government_procurement_cards,15-Jan-2019,Resources (Inc SIU),Amazon.co.uk MB65W0V04,Assistant Chief Executive (Excl SIU),19.99,Printing Stationery&Gen Office,1819Q04_PC00187
Sandwell Metropolitan Borough Council,http://www.sandwell.gov.uk/info/200202/performance_and_spending/3233/government_procurement_cards,15-Jan-2019,Housing & Communities,HIGHFIELD HOUSE HO,Neighbourhoods,262.5,Rents,1819Q04_PC00188
Sandwell Metropolitan Borough Council,http://www.sandwell.gov.uk/info/200202/performance_and_spending/3233/government_procurement_cards,16-Jan-2019,Resources (Inc SIU),AMZN MKTP UK MB4MH2MG4,Assistant Chief Executive (Excl SIU),158.69,ICT,1819Q04_PC00189
Sandwell Metropolitan Borough Council,http://www.sandwell.gov.uk/info/200202/performance_and_spending/3233/government_procurement_cards,16-Jan-2019,Resources (Inc SIU),PREMIER INN,Assistant Chief Executive (Excl SIU),-10.5,Conference Expenses,1819Q04_PC00190
Sandwell Metropolitan Borough Council,http://www.sandwell.gov.uk/info/200202/performance_and_spending/3233/government_procurement_cards,16-Jan-2019,Housing & Communities,WILKO RETAIL LIMIT,Neighbourhoods,7.5,Catering Provisions,1819Q04_PC00191
Sandwell Metropolitan Borough Council,http://www.sandwell.gov.uk/info/200202/performance_and_spending/3233/government_procurement_cards,16-Jan-2019,Regeneration & Growth,SAINSBURYS 0558,Regeneration And The Economy,13.12,Printing Stationery&Gen Office,1819Q04_PC00192
Sandwell Metropolitan Borough Council,http://www.sandwell.gov.uk/info/200202/performance_and_spending/3233/government_procurement_cards,16-Jan-2019,Resources (Inc SIU),AMZN Mktp UK MB4D805S4,Assistant Chief Executive (Excl SIU),15.99,Printing Stationery&Gen Office,1819Q04_PC00193
Sandwell Metropolitan Borough Council,http://www.sandwell.gov.uk/info/200202/performance_and_spending/3233/government_procurement_cards,16-Jan-2019,Regeneration & Growth,WWW.SLINGSBY.COM,Regeneration And The Economy,243,Cleaning,1819Q04_PC00194
Sandwell Metropolitan Borough Council,http://www.sandwell.gov.uk/info/200202/performance_and_spending/3233/government_procurement_cards,16-Jan-2019,Childrens Services,VISTAPRINT,Childrens Services,14.29,Materials & Consumables,1819Q04_PC00195
Sandwell Metropolitan Borough Council,http://www.sandwell.gov.uk/info/200202/performance_and_spending/3233/government_procurement_cards,16-Jan-2019,Childrens Services,VISTAPRINT,Childrens Services,17.73,Materials & Consumables,1819Q04_PC00196
Sandwell Metropolitan Borough Council,http://www.sandwell.gov.uk/info/200202/performance_and_spending/3233/government_procurement_cards,16-Jan-2019,Resources (Inc SIU),Amazon.co.uk MB9NN25C4,Assistant Chief Executive (Excl SIU),35.05,ICT,1819Q04_PC00197
Sandwell Metropolitan Borough Council,http://www.sandwell.gov.uk/info/200202/performance_and_spending/3233/government_procurement_cards,16-Jan-2019,Resources (Inc SIU),FLEXERA SOFTWARE LTD,Assistant Chief Executive (Excl SIU),1457.5,Ind. Emp Exp-Staff Dev&Training,1819Q04_PC00198
Sandwell Metropolitan Borough Council,http://www.sandwell.gov.uk/info/200202/performance_and_spending/3233/government_procurement_cards,16-Jan-2019,Resources (Inc SIU),FLEXERA SOFTWARE LTD,Assistant Chief Executive (Excl SIU),1457.5,Ind. Emp Exp-Staff Dev&Training,1819Q04_PC00199
Sandwell Metropolitan Borough Council,http://www.sandwell.gov.uk/info/200202/performance_and_spending/3233/government_procurement_cards,16-Jan-2019,Total Housing Revenue Account,AMZN Mktp UK MB1QD6MQ4,Total Housing Revenue Account,12.07,Materials & Consumables,1819Q04_PC00200
Sandwell Metropolitan Borough Council,http://www.sandwell.gov.uk/info/200202/performance_and_spending/3233/government_procurement_cards,16-Jan-2019,Housing & Communities,FOXALL INDUSTRIAL SUPP,Neighbourhoods,47,Protective Clothing&Uniforms,1819Q04_PC00201
Sandwell Metropolitan Borough Council,http://www.sandwell.gov.uk/info/200202/performance_and_spending/3233/government_procurement_cards,16-Jan-2019,Housing & Communities,TRAVELODGE,Neighbourhoods,51.67,Rents,1819Q04_PC00202
Sandwell Metropolitan Borough Council,http://www.sandwell.gov.uk/info/200202/performance_and_spending/3233/government_procurement_cards,16-Jan-2019,Resources (Inc SIU),AMZN Mktp UK MB07Q05P4,Assistant Chief Executive (Excl SIU),4.25,Printing Stationery&Gen Office,1819Q04_PC00203
Sandwell Metropolitan Borough Council,http://www.sandwell.gov.uk/info/200202/performance_and_spending/3233/government_procurement_cards,16-Jan-2019,Total Housing Revenue Account,Virgin Trains,Total Housing Revenue Account,252.8,Conference Expenses,1819Q04_PC00204
Sandwell Metropolitan Borough Council,http://www.sandwell.gov.uk/info/200202/performance_and_spending/3233/government_procurement_cards,16-Jan-2019,Resources (Inc SIU),ONLINE.OFFICEDEPOT.CO.,Assistant Chief Executive (Excl SIU),22.37,Printing Stationery&Gen Office,1819Q04_PC00205
Sandwell Metropolitan Borough Council,http://www.sandwell.gov.uk/info/200202/performance_and_spending/3233/government_procurement_cards,16-Jan-2019,Resources (Inc SIU),ONLINE.OFFICEDEPOT.CO.,Assistant Chief Executive (Excl SIU),11.64,Printing Stationery&Gen Office,1819Q04_PC00206
Sandwell Metropolitan Borough Council,http://www.sandwell.gov.uk/info/200202/performance_and_spending/3233/government_procurement_cards,16-Jan-2019,Regeneration & Growth,EB  GREEN GUIDE BRIEFI,Regeneration And The Economy,105,Ind. Emp Exp-Staff Dev&Training,1819Q04_PC00207
Sandwell Metropolitan Borough Council,http://www.sandwell.gov.uk/info/200202/performance_and_spending/3233/government_procurement_cards,16-Jan-2019,Childrens Services,EB  BID WRITING THE BA,Childrens Services,95,Conference Expenses,1819Q04_PC00208
Sandwell Metropolitan Borough Council,http://www.sandwell.gov.uk/info/200202/performance_and_spending/3233/government_procurement_cards,16-Jan-2019,Childrens Services,EB  BID WRITING ADVANC,Childrens Services,95,Conference Expenses,1819Q04_PC00209
Sandwell Metropolitan Borough Council,http://www.sandwell.gov.uk/info/200202/performance_and_spending/3233/government_procurement_cards,16-Jan-2019,Resources (Inc SIU),Trainline,Assistant Chief Executive (Excl SIU),20.3,Public Transport,1819Q04_PC00210
Sandwell Metropolitan Borough Council,http://www.sandwell.gov.uk/info/200202/performance_and_spending/3233/government_procurement_cards,16-Jan-2019,Individual School Budgets With Inclusion,ONLINE.OFFICEDEPOT.CO.,Individual School Budgets With Inclusion,61.08,Printing Stationery&Gen Office,1819Q04_PC00211
Sandwell Metropolitan Borough Council,http://www.sandwell.gov.uk/info/200202/performance_and_spending/3233/government_procurement_cards,16-Jan-2019,Adult Social Care Health and Wellbeing - Total,Amazon.co.uk MB69P4HE4,Total Adult Social Care,30.87,Printing Stationery&Gen Office,1819Q04_PC00212
Sandwell Metropolitan Borough Council,http://www.sandwell.gov.uk/info/200202/performance_and_spending/3233/government_procurement_cards,16-Jan-2019,Childrens Services,Spotify P091855285,Childrens Services,8.32,Subscriptions,1819Q04_PC00213
Sandwell Metropolitan Borough Council,http://www.sandwell.gov.uk/info/200202/performance_and_spending/3233/government_procurement_cards,16-Jan-2019,Adult Social Care Health and Wellbeing - Total,WWW.LOCAL.GOV.UK,Total Adult Social Care,690,Ind. Emp Exp-Staff Dev&Training,1819Q04_PC00214
Sandwell Metropolitan Borough Council,http://www.sandwell.gov.uk/info/200202/performance_and_spending/3233/government_procurement_cards,17-Jan-2019,Total Housing Revenue Account,TFL ROAD CHARGE,Total Housing Revenue Account,9.58,Car Parking,1819Q04_PC00215
Sandwell Metropolitan Borough Council,http://www.sandwell.gov.uk/info/200202/performance_and_spending/3233/government_procurement_cards,17-Jan-2019,Housing & Communities,UNIVERSAL ENGINE POWER,Neighbourhoods,298.72,Fire Service Workshops,1819Q04_PC00216
Sandwell Metropolitan Borough Council,http://www.sandwell.gov.uk/info/200202/performance_and_spending/3233/government_procurement_cards,17-Jan-2019,Adult Social Care Health and Wellbeing - Total,R & D MILLER LIMITED,Total Adult Social Care,3956,Protective Clothing&Uniforms,1819Q04_PC00217
Sandwell Metropolitan Borough Council,http://www.sandwell.gov.uk/info/200202/performance_and_spending/3233/government_procurement_cards,17-Jan-2019,Childrens Services,AMAETHWYR EIFIONYDD,Childrens Services,87.84,R& M - Building Maint&Imp.,1819Q04_PC00218
Sandwell Metropolitan Borough Council,http://www.sandwell.gov.uk/info/200202/performance_and_spending/3233/government_procurement_cards,17-Jan-2019,Housing & Communities,PRESERVATION EQUIP,Neighbourhoods,336.02,Materials & Consumables,1819Q04_PC00219
Sandwell Metropolitan Borough Council,http://www.sandwell.gov.uk/info/200202/performance_and_spending/3233/government_procurement_cards,17-Jan-2019,Resources (Inc SIU),SAINSBURYS SACAT0558,Assistant Chief Executive (Excl SIU),8,Catering Provisions,1819Q04_PC00220
Sandwell Metropolitan Borough Council,http://www.sandwell.gov.uk/info/200202/performance_and_spending/3233/government_procurement_cards,17-Jan-2019,Adult Social Care Health and Wellbeing - Total,CARTRIDGE SAVE,Total Adult Social Care,61.75,Printing Stationery&Gen Office,1819Q04_PC00221
Sandwell Metropolitan Borough Council,http://www.sandwell.gov.uk/info/200202/performance_and_spending/3233/government_procurement_cards,17-Jan-2019,Childrens Services,PCS Adventure Activity,Childrens Services,165,Materials & Consumables,1819Q04_PC00222
Sandwell Metropolitan Borough Council,http://www.sandwell.gov.uk/info/200202/performance_and_spending/3233/government_procurement_cards,17-Jan-2019,Housing & Communities,TESCO STORES 2335,Neighbourhoods,5,Equipment & Furniture,1819Q04_PC00223
Sandwell Metropolitan Borough Council,http://www.sandwell.gov.uk/info/200202/performance_and_spending/3233/government_procurement_cards,17-Jan-2019,Housing & Communities,ARGOS LTD,Neighbourhoods,20.82,Equipment & Furniture,1819Q04_PC00224
Sandwell Metropolitan Borough Council,http://www.sandwell.gov.uk/info/200202/performance_and_spending/3233/government_procurement_cards,17-Jan-2019,Housing & Communities,AMZN Mktp UK MB4UE8HZ4,Neighbourhoods,57.47,Employee Expenses,1819Q04_PC00225
Sandwell Metropolitan Borough Council,http://www.sandwell.gov.uk/info/200202/performance_and_spending/3233/government_procurement_cards,17-Jan-2019,Regeneration & Growth,AMZN Mktp UK MB1RM9HF4,Regeneration And The Economy,41.62,ICT,1819Q04_PC00226
Sandwell Metropolitan Borough Council,http://www.sandwell.gov.uk/info/200202/performance_and_spending/3233/government_procurement_cards,17-Jan-2019,Housing & Communities,HIGH SECURITY LOCK,Neighbourhoods,73.06,Equipment & Furniture,1819Q04_PC00227
Sandwell Metropolitan Borough Council,http://www.sandwell.gov.uk/info/200202/performance_and_spending/3233/government_procurement_cards,17-Jan-2019,Resources (Inc SIU),PAYPAL  EDGETRAININ,Assistant Chief Executive (Excl SIU),140,Ind. Emp Exp-Staff Dev&Training,1819Q04_PC00228
Sandwell Metropolitan Borough Council,http://www.sandwell.gov.uk/info/200202/performance_and_spending/3233/government_procurement_cards,17-Jan-2019,Resources (Inc SIU),Amazon.co.uk MB2UZ8BO4,Assistant Chief Executive (Excl SIU),46.33,ICT,1819Q04_PC00229
Sandwell Metropolitan Borough Council,http://www.sandwell.gov.uk/info/200202/performance_and_spending/3233/government_procurement_cards,17-Jan-2019,Childrens Services,WILKO RETAIL LIMIT,Childrens Services,29.37,R& M - Building Maint&Imp.,1819Q04_PC00230
Sandwell Metropolitan Borough Council,http://www.sandwell.gov.uk/info/200202/performance_and_spending/3233/government_procurement_cards,17-Jan-2019,Regeneration & Growth,AMZN Mktp UK MB5T17HU4,Regeneration And The Economy,51.95,ICT,1819Q04_PC00231
Sandwell Metropolitan Borough Council,http://www.sandwell.gov.uk/info/200202/performance_and_spending/3233/government_procurement_cards,17-Jan-2019,Resources (Inc SIU),SAINSBURYS SACAT0558,Assistant Chief Executive (Excl SIU),5.3,Catering Provisions,1819Q04_PC00232
Sandwell Metropolitan Borough Council,http://www.sandwell.gov.uk/info/200202/performance_and_spending/3233/government_procurement_cards,17-Jan-2019,Housing & Communities,Trainline,Neighbourhoods,80.38,Public Transport,1819Q04_PC00233
Sandwell Metropolitan Borough Council,http://www.sandwell.gov.uk/info/200202/performance_and_spending/3233/government_procurement_cards,17-Jan-2019,Resources (Inc SIU),WWW.218STRAND.COM,Assistant Chief Executive (Excl SIU),150,Ind. Emp Exp-Staff Dev&Training,1819Q04_PC00234
Sandwell Metropolitan Borough Council,http://www.sandwell.gov.uk/info/200202/performance_and_spending/3233/government_procurement_cards,17-Jan-2019,Childrens Services,Trainline,Childrens Services,85.52,Public Transport,1819Q04_PC00235
Sandwell Metropolitan Borough Council,http://www.sandwell.gov.uk/info/200202/performance_and_spending/3233/government_procurement_cards,17-Jan-2019,Regeneration & Growth,TRAVEL LUGGAGE CB,Regeneration And The Economy,30.82,Printing Stationery&Gen Office,1819Q04_PC00236
Sandwell Metropolitan Borough Council,http://www.sandwell.gov.uk/info/200202/performance_and_spending/3233/government_procurement_cards,17-Jan-2019,Regeneration & Growth,HELIOS SOFTWARE,Regeneration And The Economy,33,ICT,1819Q04_PC00237
Sandwell Metropolitan Borough Council,http://www.sandwell.gov.uk/info/200202/performance_and_spending/3233/government_procurement_cards,17-Jan-2019,Housing & Communities,Trainline,Neighbourhoods,-80,Public Transport,1819Q04_PC00238
Sandwell Metropolitan Borough Council,http://www.sandwell.gov.uk/info/200202/performance_and_spending/3233/government_procurement_cards,17-Jan-2019,Housing & Communities,Trainline,Neighbourhoods,82.93,Public Transport,1819Q04_PC00239
Sandwell Metropolitan Borough Council,http://www.sandwell.gov.uk/info/200202/performance_and_spending/3233/government_procurement_cards,17-Jan-2019,Housing & Communities,TRAVELODGE,Neighbourhoods,47.5,Rents,1819Q04_PC00240
Sandwell Metropolitan Borough Council,http://www.sandwell.gov.uk/info/200202/performance_and_spending/3233/government_procurement_cards,18-Jan-2019,Total Housing Revenue Account,Q PARK ONLINE SALES UK,Total Housing Revenue Account,29.17,Car Parking,1819Q04_PC00241
Sandwell Metropolitan Borough Council,http://www.sandwell.gov.uk/info/200202/performance_and_spending/3233/government_procurement_cards,18-Jan-2019,Resources (Inc SIU),AMZN MKTP UK MB2YR5BD4,Assistant Chief Executive (Excl SIU),29.95,ICT,1819Q04_PC00242
Sandwell Metropolitan Borough Council,http://www.sandwell.gov.uk/info/200202/performance_and_spending/3233/government_procurement_cards,18-Jan-2019,Adult Social Care Health and Wellbeing - Total,PAYPAL  GO OUTDOORS,Total Adult Social Care,991.1,Protective Clothing&Uniforms,1819Q04_PC00243
Sandwell Metropolitan Borough Council,http://www.sandwell.gov.uk/info/200202/performance_and_spending/3233/government_procurement_cards,18-Jan-2019,Resources (Inc SIU),FD SOLUTIONS LTD,Assistant Chief Executive (Excl SIU),349,Printing Stationery&Gen Office,1819Q04_PC00244
Sandwell Metropolitan Borough Council,http://www.sandwell.gov.uk/info/200202/performance_and_spending/3233/government_procurement_cards,18-Jan-2019,Childrens Services,AMZN Mktp UK MB6S76B64,Childrens Services,6.24,Materials & Consumables,1819Q04_PC00245
Sandwell Metropolitan Borough Council,http://www.sandwell.gov.uk/info/200202/performance_and_spending/3233/government_procurement_cards,18-Jan-2019,Total Housing Revenue Account,AMZN MKTP UK MB8NS5BU4,Total Housing Revenue Account,7.48,Equipment & Furniture,1819Q04_PC00246
Sandwell Metropolitan Borough Council,http://www.sandwell.gov.uk/info/200202/performance_and_spending/3233/government_procurement_cards,18-Jan-2019,Housing & Communities,FOXALL INDUSTRIAL SUPP,Neighbourhoods,23.5,Protective Clothing&Uniforms,1819Q04_PC00247
Sandwell Metropolitan Borough Council,http://www.sandwell.gov.uk/info/200202/performance_and_spending/3233/government_procurement_cards,18-Jan-2019,Resources (Inc SIU),AMZN Mktp UK MB16V7864,Assistant Chief Executive (Excl SIU),10.45,Printing Stationery&Gen Office,1819Q04_PC00248
Sandwell Metropolitan Borough Council,http://www.sandwell.gov.uk/info/200202/performance_and_spending/3233/government_procurement_cards,18-Jan-2019,Housing & Communities,ASDA GROCERIES ONLINE,Neighbourhoods,195,Catering Provisions,1819Q04_PC00249
Sandwell Metropolitan Borough Council,http://www.sandwell.gov.uk/info/200202/performance_and_spending/3233/government_procurement_cards,18-Jan-2019,Housing & Communities,Virgin Trains,Neighbourhoods,202.6,Public Transport,1819Q04_PC00250
Sandwell Metropolitan Borough Council,http://www.sandwell.gov.uk/info/200202/performance_and_spending/3233/government_procurement_cards,18-Jan-2019,Housing & Communities,BEARWOOD BUILDERS SUPP,Neighbourhoods,10.8,Materials & Consumables,1819Q04_PC00251
Sandwell Metropolitan Borough Council,http://www.sandwell.gov.uk/info/200202/performance_and_spending/3233/government_procurement_cards,18-Jan-2019,Housing & Communities,Amazon.co.uk MB2LV48R4,Neighbourhoods,6.47,Materials & Consumables,1819Q04_PC00252
Sandwell Metropolitan Borough Council,http://www.sandwell.gov.uk/info/200202/performance_and_spending/3233/government_procurement_cards,18-Jan-2019,Housing & Communities,Amazon.co.uk MB94S4BN4,Neighbourhoods,14.76,Materials & Consumables,1819Q04_PC00253
Sandwell Metropolitan Borough Council,http://www.sandwell.gov.uk/info/200202/performance_and_spending/3233/government_procurement_cards,18-Jan-2019,Housing & Communities,Amazon.co.uk MB16R8QS4,Neighbourhoods,2,Materials & Consumables,1819Q04_PC00254
Sandwell Metropolitan Borough Council,http://www.sandwell.gov.uk/info/200202/performance_and_spending/3233/government_procurement_cards,18-Jan-2019,Regeneration & Growth,AMZN Mktp UK MB77R4BU4,Regeneration And The Economy,16.99,Equipment & Furniture,1819Q04_PC00255
Sandwell Metropolitan Borough Council,http://www.sandwell.gov.uk/info/200202/performance_and_spending/3233/government_procurement_cards,18-Jan-2019,Adult Social Care Health and Wellbeing - Total,WWW.DOMINOS.CO.UK,Public Health,54.98,Catering Provisions,1819Q04_PC00256
Sandwell Metropolitan Borough Council,http://www.sandwell.gov.uk/info/200202/performance_and_spending/3233/government_procurement_cards,18-Jan-2019,Housing & Communities,TRAVELODGE,Neighbourhoods,70,Operational Services,1819Q04_PC00257
Sandwell Metropolitan Borough Council,http://www.sandwell.gov.uk/info/200202/performance_and_spending/3233/government_procurement_cards,21-Jan-2019,Housing & Communities,PAYPAL  HAI19911025,Neighbourhoods,8.69,Rent Allowances Local Scheme,1819Q04_PC00258
Sandwell Metropolitan Borough Council,http://www.sandwell.gov.uk/info/200202/performance_and_spending/3233/government_procurement_cards,21-Jan-2019,Housing & Communities,CIVICA UK LTD,Neighbourhoods,589,Equipment & Furniture,1819Q04_PC00259
Sandwell Metropolitan Borough Council,http://www.sandwell.gov.uk/info/200202/performance_and_spending/3233/government_procurement_cards,21-Jan-2019,Childrens Services,POUNDLAND LTD 1729,Childrens Services,10.04,Catering Equipment,1819Q04_PC00260
Sandwell Metropolitan Borough Council,http://www.sandwell.gov.uk/info/200202/performance_and_spending/3233/government_procurement_cards,21-Jan-2019,Childrens Services,ICELAND 1603,Childrens Services,30.27,Catering Provisions,1819Q04_PC00261
Sandwell Metropolitan Borough Council,http://www.sandwell.gov.uk/info/200202/performance_and_spending/3233/government_procurement_cards,21-Jan-2019,Housing & Communities,Trainline,Neighbourhoods,66.45,Public Transport,1819Q04_PC00262
Sandwell Metropolitan Borough Council,http://www.sandwell.gov.uk/info/200202/performance_and_spending/3233/government_procurement_cards,21-Jan-2019,Regeneration & Growth,Water Plus,Regeneration And The Economy,31.57,Water Services,1819Q04_PC00263
Sandwell Metropolitan Borough Council,http://www.sandwell.gov.uk/info/200202/performance_and_spending/3233/government_procurement_cards,21-Jan-2019,Resources (Inc SIU),Virgin Trains,Assistant Chief Executive (Excl SIU),81.5,Public Transport,1819Q04_PC00264
Sandwell Metropolitan Borough Council,http://www.sandwell.gov.uk/info/200202/performance_and_spending/3233/government_procurement_cards,21-Jan-2019,Resources (Inc SIU),HMCOURT-SERVICES.G,Assistant Chief Executive (Excl SIU),110,Professional Services External,1819Q04_PC00265
Sandwell Metropolitan Borough Council,http://www.sandwell.gov.uk/info/200202/performance_and_spending/3233/government_procurement_cards,21-Jan-2019,Childrens Services,SAINSBURYS 0558,Childrens Services,10.1,Catering Equipment,1819Q04_PC00266
Sandwell Metropolitan Borough Council,http://www.sandwell.gov.uk/info/200202/performance_and_spending/3233/government_procurement_cards,21-Jan-2019,Housing & Communities,DVSA,Neighbourhoods,1025,Licences&Test Fees,1819Q04_PC00267
Sandwell Metropolitan Borough Council,http://www.sandwell.gov.uk/info/200202/performance_and_spending/3233/government_procurement_cards,21-Jan-2019,Corporate Management,Virgin Trains,Corporate Management,63.5,Public Transport,1819Q04_PC00268
Sandwell Metropolitan Borough Council,http://www.sandwell.gov.uk/info/200202/performance_and_spending/3233/government_procurement_cards,21-Jan-2019,Housing & Communities,Virgin Trains,Neighbourhoods,489.3,Public Transport,1819Q04_PC00269
Sandwell Metropolitan Borough Council,http://www.sandwell.gov.uk/info/200202/performance_and_spending/3233/government_procurement_cards,21-Jan-2019,Adult Social Care Health and Wellbeing - Total,Trainline,Total Adult Social Care,137.26,Public Transport,1819Q04_PC00270
Sandwell Metropolitan Borough Council,http://www.sandwell.gov.uk/info/200202/performance_and_spending/3233/government_procurement_cards,21-Jan-2019,Housing & Communities,BLACK COUNTRY CHAMBER,Neighbourhoods,78,Subscriptions,1819Q04_PC00271
Sandwell Metropolitan Borough Council,http://www.sandwell.gov.uk/info/200202/performance_and_spending/3233/government_procurement_cards,21-Jan-2019,Childrens Services,TESCO STORES 6197,Childrens Services,15.56,Catering Provisions,1819Q04_PC00272
Sandwell Metropolitan Borough Council,http://www.sandwell.gov.uk/info/200202/performance_and_spending/3233/government_procurement_cards,21-Jan-2019,Corporate Management,Virgin Trains,Corporate Management,147.2,Public Transport,1819Q04_PC00273
Sandwell Metropolitan Borough Council,http://www.sandwell.gov.uk/info/200202/performance_and_spending/3233/government_procurement_cards,21-Jan-2019,Resources (Inc SIU),AMZN MKTP UK MB7GY4QZ4,Assistant Chief Executive (Excl SIU),4.25,ICT,1819Q04_PC00274
Sandwell Metropolitan Borough Council,http://www.sandwell.gov.uk/info/200202/performance_and_spending/3233/government_procurement_cards,21-Jan-2019,Housing & Communities,AMZN Mktp UK MB0VG4QH4,Neighbourhoods,7.59,Catering Provisions,1819Q04_PC00275
Sandwell Metropolitan Borough Council,http://www.sandwell.gov.uk/info/200202/performance_and_spending/3233/government_procurement_cards,21-Jan-2019,Housing & Communities,AMZN Mktp UK MB0R39QB4,Neighbourhoods,2.99,Printing Stationery&Gen Office,1819Q04_PC00276
Sandwell Metropolitan Borough Council,http://www.sandwell.gov.uk/info/200202/performance_and_spending/3233/government_procurement_cards,21-Jan-2019,Childrens Services,AMZN Mktp UK MB5W05QG4,Childrens Services,2.93,Materials & Consumables,1819Q04_PC00277
Sandwell Metropolitan Borough Council,http://www.sandwell.gov.uk/info/200202/performance_and_spending/3233/government_procurement_cards,21-Jan-2019,Housing & Communities,AMZN Mktp UK MB2H366C4,Neighbourhoods,2.42,Materials & Consumables,1819Q04_PC00278
Sandwell Metropolitan Borough Council,http://www.sandwell.gov.uk/info/200202/performance_and_spending/3233/government_procurement_cards,21-Jan-2019,Childrens Services,GREGGS PLC,Childrens Services,125,Catering Provisions,1819Q04_PC00279
Sandwell Metropolitan Borough Council,http://www.sandwell.gov.uk/info/200202/performance_and_spending/3233/government_procurement_cards,21-Jan-2019,Childrens Services,GREGGS PLC,Childrens Services,130,Catering Provisions,1819Q04_PC00280
Sandwell Metropolitan Borough Council,http://www.sandwell.gov.uk/info/200202/performance_and_spending/3233/government_procurement_cards,21-Jan-2019,Housing & Communities,AMZN Mktp UK MB7CW86R4,Neighbourhoods,2.98,Printing Stationery&Gen Office,1819Q04_PC00281
Sandwell Metropolitan Borough Council,http://www.sandwell.gov.uk/info/200202/performance_and_spending/3233/government_procurement_cards,21-Jan-2019,Childrens Services,Amazon.co.uk MB04F6D84,Childrens Services,200.66,Printing Stationery&Gen Office,1819Q04_PC00282
Sandwell Metropolitan Borough Council,http://www.sandwell.gov.uk/info/200202/performance_and_spending/3233/government_procurement_cards,21-Jan-2019,Resources (Inc SIU),Amazon.co.uk MB5Z21DG4,Assistant Chief Executive (Excl SIU),18.73,ICT,1819Q04_PC00283
Sandwell Metropolitan Borough Council,http://www.sandwell.gov.uk/info/200202/performance_and_spending/3233/government_procurement_cards,21-Jan-2019,Resources (Inc SIU),ALDI 45 772,Assistant Chief Executive (Excl SIU),3.93,Catering Provisions,1819Q04_PC00284
Sandwell Metropolitan Borough Council,http://www.sandwell.gov.uk/info/200202/performance_and_spending/3233/government_procurement_cards,21-Jan-2019,Resources (Inc SIU),Trainline,Assistant Chief Executive (Excl SIU),-15.29,Public Transport,1819Q04_PC00285
Sandwell Metropolitan Borough Council,http://www.sandwell.gov.uk/info/200202/performance_and_spending/3233/government_procurement_cards,21-Jan-2019,Childrens Services,ASDA GROCERIES ONLINE,Childrens Services,-0.78,Catering Provisions,1819Q04_PC00286
Sandwell Metropolitan Borough Council,http://www.sandwell.gov.uk/info/200202/performance_and_spending/3233/government_procurement_cards,21-Jan-2019,Childrens Services,ASDA GROCERIES ONLINE,Childrens Services,113.18,Catering Provisions,1819Q04_PC00287
Sandwell Metropolitan Borough Council,http://www.sandwell.gov.uk/info/200202/performance_and_spending/3233/government_procurement_cards,21-Jan-2019,Adult Social Care Health and Wellbeing - Total,Brookfleet Cars Limite,Public Health,13,Public Transport,1819Q04_PC00288
Sandwell Metropolitan Borough Council,http://www.sandwell.gov.uk/info/200202/performance_and_spending/3233/government_procurement_cards,21-Jan-2019,Adult Social Care Health and Wellbeing - Total,Brookfleet Cars Limite,Public Health,15,Public Transport,1819Q04_PC00289
Sandwell Metropolitan Borough Council,http://www.sandwell.gov.uk/info/200202/performance_and_spending/3233/government_procurement_cards,21-Jan-2019,Childrens Services,AMZN Mktp UK MB0UP9QS4,Childrens Services,3.48,Printing Stationery&Gen Office,1819Q04_PC00290
Sandwell Metropolitan Borough Council,http://www.sandwell.gov.uk/info/200202/performance_and_spending/3233/government_procurement_cards,21-Jan-2019,Resources (Inc SIU),Amazon.co.uk MB8AD5DS4,Assistant Chief Executive (Excl SIU),26.05,Printing Stationery&Gen Office,1819Q04_PC00291
Sandwell Metropolitan Borough Council,http://www.sandwell.gov.uk/info/200202/performance_and_spending/3233/government_procurement_cards,22-Jan-2019,Regeneration & Growth,AMZN Mktp UK MB0EK2SP4,Regeneration And The Economy,124.92,ICT,1819Q04_PC00292
Sandwell Metropolitan Borough Council,http://www.sandwell.gov.uk/info/200202/performance_and_spending/3233/government_procurement_cards,22-Jan-2019,Total Housing Revenue Account,NRS-UK,Total Housing Revenue Account,57.8,Materials & Consumables,1819Q04_PC00293
Sandwell Metropolitan Borough Council,http://www.sandwell.gov.uk/info/200202/performance_and_spending/3233/government_procurement_cards,22-Jan-2019,Childrens Services,VISTAPRINT,Childrens Services,14.29,Materials & Consumables,1819Q04_PC00294
Sandwell Metropolitan Borough Council,http://www.sandwell.gov.uk/info/200202/performance_and_spending/3233/government_procurement_cards,22-Jan-2019,Housing & Communities,NISA LOCAL,Neighbourhoods,6.7,Equipment & Furniture,1819Q04_PC00295
Sandwell Metropolitan Borough Council,http://www.sandwell.gov.uk/info/200202/performance_and_spending/3233/government_procurement_cards,22-Jan-2019,Corporate Management,CENTRAL ENG COOP,Corporate Management,7.58,Catering Provisions,1819Q04_PC00296
Sandwell Metropolitan Borough Council,http://www.sandwell.gov.uk/info/200202/performance_and_spending/3233/government_procurement_cards,22-Jan-2019,Individual School Budgets With Inclusion,ONLINE.OFFICEDEPOT.CO.,Individual School Budgets With Inclusion,31.49,Printing Stationery&Gen Office,1819Q04_PC00297
Sandwell Metropolitan Borough Council,http://www.sandwell.gov.uk/info/200202/performance_and_spending/3233/government_procurement_cards,22-Jan-2019,Housing & Communities,ONLINE.OFFICEDEPOT.CO.,Neighbourhoods,71.94,Printing Stationery&Gen Office,1819Q04_PC00298
Sandwell Metropolitan Borough Council,http://www.sandwell.gov.uk/info/200202/performance_and_spending/3233/government_procurement_cards,22-Jan-2019,Childrens Services,ONLINE.OFFICEDEPOT.CO.,Childrens Services,36.63,Printing Stationery&Gen Office,1819Q04_PC00299
Sandwell Metropolitan Borough Council,http://www.sandwell.gov.uk/info/200202/performance_and_spending/3233/government_procurement_cards,22-Jan-2019,Individual School Budgets With Inclusion,ONLINE.OFFICEDEPOT.CO.,Individual School Budgets With Inclusion,16.37,Printing Stationery&Gen Office,1819Q04_PC00300
Sandwell Metropolitan Borough Council,http://www.sandwell.gov.uk/info/200202/performance_and_spending/3233/government_procurement_cards,22-Jan-2019,Childrens Services,CANALSIDE HOLDINGS LIM,Childrens Services,22,Catering Provisions,1819Q04_PC00301
Sandwell Metropolitan Borough Council,http://www.sandwell.gov.uk/info/200202/performance_and_spending/3233/government_procurement_cards,22-Jan-2019,Housing & Communities,AMZN Mktp UK MB8UM4SB4,Neighbourhoods,3,Materials & Consumables,1819Q04_PC00302
Sandwell Metropolitan Borough Council,http://www.sandwell.gov.uk/info/200202/performance_and_spending/3233/government_procurement_cards,22-Jan-2019,Housing & Communities,AMZN Mktp UK MB8QR9SC4,Neighbourhoods,2.41,Materials & Consumables,1819Q04_PC00303
Sandwell Metropolitan Borough Council,http://www.sandwell.gov.uk/info/200202/performance_and_spending/3233/government_procurement_cards,22-Jan-2019,Housing & Communities,Trainline,Neighbourhoods,99.6,Public Transport,1819Q04_PC00304
Sandwell Metropolitan Borough Council,http://www.sandwell.gov.uk/info/200202/performance_and_spending/3233/government_procurement_cards,22-Jan-2019,Childrens Services,POST OFFICE COUNTER,Childrens Services,7.3,"Postages, Carriage & Courier Services",1819Q04_PC00305
Sandwell Metropolitan Borough Council,http://www.sandwell.gov.uk/info/200202/performance_and_spending/3233/government_procurement_cards,22-Jan-2019,Childrens Services,POST OFFICE COUNTER,Childrens Services,67,"Postages, Carriage & Courier Services",1819Q04_PC00306
Sandwell Metropolitan Borough Council,http://www.sandwell.gov.uk/info/200202/performance_and_spending/3233/government_procurement_cards,22-Jan-2019,Adult Social Care Health and Wellbeing - Total,ONLINE.OFFICEDEPOT.CO.,Total Adult Social Care,50.72,Printing Stationery&Gen Office,1819Q04_PC00307
Sandwell Metropolitan Borough Council,http://www.sandwell.gov.uk/info/200202/performance_and_spending/3233/government_procurement_cards,22-Jan-2019,Housing & Communities,AMZN Mktp UK MB09K12V4,Neighbourhoods,13.47,Materials & Consumables,1819Q04_PC00308
Sandwell Metropolitan Borough Council,http://www.sandwell.gov.uk/info/200202/performance_and_spending/3233/government_procurement_cards,22-Jan-2019,Resources (Inc SIU),ONLINE.OFFICEDEPOT.CO.,Assistant Chief Executive (Excl SIU),44.62,Printing Stationery&Gen Office,1819Q04_PC00309
Sandwell Metropolitan Borough Council,http://www.sandwell.gov.uk/info/200202/performance_and_spending/3233/government_procurement_cards,22-Jan-2019,Childrens Services,ARGOS RETAIL GROUP,Childrens Services,19.99,Materials & Consumables,1819Q04_PC00310
Sandwell Metropolitan Borough Council,http://www.sandwell.gov.uk/info/200202/performance_and_spending/3233/government_procurement_cards,22-Jan-2019,Housing & Communities,WILKO RETAIL LIMIT,Neighbourhoods,79.98,Equipment & Furniture,1819Q04_PC00311
Sandwell Metropolitan Borough Council,http://www.sandwell.gov.uk/info/200202/performance_and_spending/3233/government_procurement_cards,22-Jan-2019,Housing & Communities,AMZN Mktp UK MB48P5SO4,Neighbourhoods,2.93,Printing Stationery&Gen Office,1819Q04_PC00312
Sandwell Metropolitan Borough Council,http://www.sandwell.gov.uk/info/200202/performance_and_spending/3233/government_procurement_cards,22-Jan-2019,Housing & Communities,ASDA STORES 4274,Neighbourhoods,3.41,Catering Provisions,1819Q04_PC00313
Sandwell Metropolitan Borough Council,http://www.sandwell.gov.uk/info/200202/performance_and_spending/3233/government_procurement_cards,23-Jan-2019,Resources (Inc SIU),PREMIER INN,Assistant Chief Executive (Excl SIU),51,Conference Expenses,1819Q04_PC00314
Sandwell Metropolitan Borough Council,http://www.sandwell.gov.uk/info/200202/performance_and_spending/3233/government_procurement_cards,23-Jan-2019,Housing & Communities,AMZN Mktp UK MB7FV1K24,Neighbourhoods,118.8,Grounds Maint&Improvements,1819Q04_PC00315
Sandwell Metropolitan Borough Council,http://www.sandwell.gov.uk/info/200202/performance_and_spending/3233/government_procurement_cards,23-Jan-2019,Housing & Communities,AMZN Mktp UK MB36B6K14,Neighbourhoods,1.41,R& M - Building Maint&Imp.,1819Q04_PC00316
Sandwell Metropolitan Borough Council,http://www.sandwell.gov.uk/info/200202/performance_and_spending/3233/government_procurement_cards,23-Jan-2019,Housing & Communities,AMZN Mktp UK MB3V22KF4,Neighbourhoods,38.3,Grounds Maint&Improvements,1819Q04_PC00317
Sandwell Metropolitan Borough Council,http://www.sandwell.gov.uk/info/200202/performance_and_spending/3233/government_procurement_cards,23-Jan-2019,Housing & Communities,AMZN Mktp UK MB49X7KG4,Neighbourhoods,10.8,R& M - Building Maint&Imp.,1819Q04_PC00318
Sandwell Metropolitan Borough Council,http://www.sandwell.gov.uk/info/200202/performance_and_spending/3233/government_procurement_cards,23-Jan-2019,Total Housing Revenue Account,WWW.GEMINIDATALOGGERS.,Total Housing Revenue Account,999.95,Materials & Consumables,1819Q04_PC00319
Sandwell Metropolitan Borough Council,http://www.sandwell.gov.uk/info/200202/performance_and_spending/3233/government_procurement_cards,23-Jan-2019,Housing & Communities,BIG CITY BANNERS & SIG,Neighbourhoods,147.14,Ind. Emp Exp-Advertising,1819Q04_PC00320
Sandwell Metropolitan Borough Council,http://www.sandwell.gov.uk/info/200202/performance_and_spending/3233/government_procurement_cards,23-Jan-2019,Housing & Communities,CPLTRAINING,Neighbourhoods,135,Ind. Emp Exp-Staff Dev&Training,1819Q04_PC00321
Sandwell Metropolitan Borough Council,http://www.sandwell.gov.uk/info/200202/performance_and_spending/3233/government_procurement_cards,23-Jan-2019,Housing & Communities,C P L TRAINING LTD,Neighbourhoods,135,Ind. Emp Exp-Staff Dev&Training,1819Q04_PC00322
Sandwell Metropolitan Borough Council,http://www.sandwell.gov.uk/info/200202/performance_and_spending/3233/government_procurement_cards,23-Jan-2019,Childrens Services,TIMPSON LTD,Childrens Services,8.33,Fixtures & Fittings,1819Q04_PC00323
Sandwell Metropolitan Borough Council,http://www.sandwell.gov.uk/info/200202/performance_and_spending/3233/government_procurement_cards,23-Jan-2019,Childrens Services,WWW.IKEA.COM,Childrens Services,61.62,Equipment & Furniture,1819Q04_PC00324
Sandwell Metropolitan Borough Council,http://www.sandwell.gov.uk/info/200202/performance_and_spending/3233/government_procurement_cards,23-Jan-2019,Resources Capital,Amazon.co.uk MB6C43KD4,#N/A,147.12,ICT,1819Q04_PC00325
Sandwell Metropolitan Borough Council,http://www.sandwell.gov.uk/info/200202/performance_and_spending/3233/government_procurement_cards,23-Jan-2019,Housing & Communities,AMZN Mktp UK MB8M06KV4,Neighbourhoods,15.82,R& M - Building Maint&Imp.,1819Q04_PC00326
Sandwell Metropolitan Borough Council,http://www.sandwell.gov.uk/info/200202/performance_and_spending/3233/government_procurement_cards,23-Jan-2019,Housing & Communities,RUBY NEWS - 31100312-,Neighbourhoods,2.08,Materials & Consumables,1819Q04_PC00327
Sandwell Metropolitan Borough Council,http://www.sandwell.gov.uk/info/200202/performance_and_spending/3233/government_procurement_cards,23-Jan-2019,Regeneration & Growth,Amazon.co.uk MB0729KR4,Regeneration And The Economy,63.65,ICT,1819Q04_PC00328
Sandwell Metropolitan Borough Council,http://www.sandwell.gov.uk/info/200202/performance_and_spending/3233/government_procurement_cards,23-Jan-2019,Regeneration & Growth,Amazon.co.uk MB0733KE4,Regeneration And The Economy,21.22,ICT,1819Q04_PC00329
Sandwell Metropolitan Borough Council,http://www.sandwell.gov.uk/info/200202/performance_and_spending/3233/government_procurement_cards,23-Jan-2019,Housing & Communities,AMZN Mktp UK MB3W81K04,Neighbourhoods,274.87,Catering Provisions,1819Q04_PC00330
Sandwell Metropolitan Borough Council,http://www.sandwell.gov.uk/info/200202/performance_and_spending/3233/government_procurement_cards,23-Jan-2019,Housing & Communities,AMZN Mktp UK MB6WW8KR4,Neighbourhoods,137.43,Catering Provisions,1819Q04_PC00331
Sandwell Metropolitan Borough Council,http://www.sandwell.gov.uk/info/200202/performance_and_spending/3233/government_procurement_cards,23-Jan-2019,Childrens Services,VISTAPR VistaPrint.com,Childrens Services,14.29,Materials & Consumables,1819Q04_PC00332
Sandwell Metropolitan Borough Council,http://www.sandwell.gov.uk/info/200202/performance_and_spending/3233/government_procurement_cards,23-Jan-2019,Total Housing Revenue Account,TOTAL HYGIENE,Total Housing Revenue Account,295,Materials & Consumables,1819Q04_PC00333
Sandwell Metropolitan Borough Council,http://www.sandwell.gov.uk/info/200202/performance_and_spending/3233/government_procurement_cards,23-Jan-2019,Resources (Inc SIU),HMCOURTS-SERVICE.G,Assistant Chief Executive (Excl SIU),148,Professional Services External,1819Q04_PC00334
Sandwell Metropolitan Borough Council,http://www.sandwell.gov.uk/info/200202/performance_and_spending/3233/government_procurement_cards,23-Jan-2019,Total Housing Revenue Account,AMZN Mktp UK MB6UB6KT4,Total Housing Revenue Account,59.97,Materials & Consumables,1819Q04_PC00335
Sandwell Metropolitan Borough Council,http://www.sandwell.gov.uk/info/200202/performance_and_spending/3233/government_procurement_cards,23-Jan-2019,Resources (Inc SIU),ONLINE.OFFICEDEPOT.CO.,Assistant Chief Executive (Excl SIU),34.76,Printing Stationery&Gen Office,1819Q04_PC00336
Sandwell Metropolitan Borough Council,http://www.sandwell.gov.uk/info/200202/performance_and_spending/3233/government_procurement_cards,23-Jan-2019,Resources (Inc SIU),HMCOURTS-SERVICE.G,Assistant Chief Executive (Excl SIU),1014,Council Tax,1819Q04_PC00337
Sandwell Metropolitan Borough Council,http://www.sandwell.gov.uk/info/200202/performance_and_spending/3233/government_procurement_cards,23-Jan-2019,Adult Social Care Health and Wellbeing - Total,PAYPAL  SK APPAREL,Total Adult Social Care,32.46,Protective Clothing&Uniforms,1819Q04_PC00338
Sandwell Metropolitan Borough Council,http://www.sandwell.gov.uk/info/200202/performance_and_spending/3233/government_procurement_cards,23-Jan-2019,Individual School Budgets With Inclusion,AMZN MKTP UK MB2992K04,Individual School Budgets With Inclusion,145.85,ICT,1819Q04_PC00339
Sandwell Metropolitan Borough Council,http://www.sandwell.gov.uk/info/200202/performance_and_spending/3233/government_procurement_cards,23-Jan-2019,Housing & Communities,ASDA STORES 4274,Neighbourhoods,1.94,Catering Provisions,1819Q04_PC00340
Sandwell Metropolitan Borough Council,http://www.sandwell.gov.uk/info/200202/performance_and_spending/3233/government_procurement_cards,23-Jan-2019,Resources (Inc SIU),PAYPAL  ELEPHONEECO,Assistant Chief Executive (Excl SIU),3.66,Equipment & Furniture,1819Q04_PC00341
Sandwell Metropolitan Borough Council,http://www.sandwell.gov.uk/info/200202/performance_and_spending/3233/government_procurement_cards,23-Jan-2019,Adult Social Care Health and Wellbeing - Total,Trainline,Total Adult Social Care,51.38,Public Transport,1819Q04_PC00342
Sandwell Metropolitan Borough Council,http://www.sandwell.gov.uk/info/200202/performance_and_spending/3233/government_procurement_cards,23-Jan-2019,Regeneration & Growth,WWW.RYMAN.CO.UK,Regeneration And The Economy,49.98,Printing Stationery&Gen Office,1819Q04_PC00343
Sandwell Metropolitan Borough Council,http://www.sandwell.gov.uk/info/200202/performance_and_spending/3233/government_procurement_cards,23-Jan-2019,Regeneration & Growth,Amazon.co.uk MB08Y42D4,Regeneration And The Economy,21.6,Printing Stationery&Gen Office,1819Q04_PC00344
Sandwell Metropolitan Borough Council,http://www.sandwell.gov.uk/info/200202/performance_and_spending/3233/government_procurement_cards,23-Jan-2019,Childrens Services,SAINSBURYS SACAT 0756,Childrens Services,3.45,Catering Provisions,1819Q04_PC00345
Sandwell Metropolitan Borough Council,http://www.sandwell.gov.uk/info/200202/performance_and_spending/3233/government_procurement_cards,24-Jan-2019,Total Housing Revenue Account,INTUMESCENT SYSTEM,Total Housing Revenue Account,84.77,Materials & Consumables,1819Q04_PC00346
Sandwell Metropolitan Borough Council,http://www.sandwell.gov.uk/info/200202/performance_and_spending/3233/government_procurement_cards,24-Jan-2019,Adult Social Care Health and Wellbeing - Total,AMZN MKTP UK MB86087N4,Total Adult Social Care,26.66,ICT,1819Q04_PC00347
Sandwell Metropolitan Borough Council,http://www.sandwell.gov.uk/info/200202/performance_and_spending/3233/government_procurement_cards,24-Jan-2019,Housing & Communities,AMZN MKTP UK MB3334K64,Neighbourhoods,4.54,ICT,1819Q04_PC00348
Sandwell Metropolitan Borough Council,http://www.sandwell.gov.uk/info/200202/performance_and_spending/3233/government_procurement_cards,24-Jan-2019,Housing & Communities,AMZN MKTP UK MB87O9KX4,Neighbourhoods,16.83,Materials & Consumables,1819Q04_PC00349
Sandwell Metropolitan Borough Council,http://www.sandwell.gov.uk/info/200202/performance_and_spending/3233/government_procurement_cards,24-Jan-2019,Childrens Services,NORTHERN POTTERY LTD,Childrens Services,69.13,R& M - Building Maint&Imp.,1819Q04_PC00350
Sandwell Metropolitan Borough Council,http://www.sandwell.gov.uk/info/200202/performance_and_spending/3233/government_procurement_cards,24-Jan-2019,Resources (Inc SIU),AMZN Mktp UK MB8G307X4,Assistant Chief Executive (Excl SIU),7.49,Printing Stationery&Gen Office,1819Q04_PC00351
Sandwell Metropolitan Borough Council,http://www.sandwell.gov.uk/info/200202/performance_and_spending/3233/government_procurement_cards,24-Jan-2019,Adult Social Care Health and Wellbeing - Total,IKEA LTD 142 BIRMINGHA,Total Adult Social Care,12.5,Equipment & Furniture,1819Q04_PC00352
Sandwell Metropolitan Borough Council,http://www.sandwell.gov.uk/info/200202/performance_and_spending/3233/government_procurement_cards,24-Jan-2019,Childrens Services,Amazon.co.uk MB2WB09K4,Childrens Services,26.2,Materials & Consumables,1819Q04_PC00353
Sandwell Metropolitan Borough Council,http://www.sandwell.gov.uk/info/200202/performance_and_spending/3233/government_procurement_cards,24-Jan-2019,Housing & Communities,AMZN MKTP UK MB8ON1744,Neighbourhoods,1.91,ICT,1819Q04_PC00354
Sandwell Metropolitan Borough Council,http://www.sandwell.gov.uk/info/200202/performance_and_spending/3233/government_procurement_cards,24-Jan-2019,Resources (Inc SIU),WWW.PARAGON.NET.UK RT,Assistant Chief Executive (Excl SIU),5.99,ICT,1819Q04_PC00355
Sandwell Metropolitan Borough Council,http://www.sandwell.gov.uk/info/200202/performance_and_spending/3233/government_procurement_cards,24-Jan-2019,Total Housing Revenue Account,ARCO LTD,Total Housing Revenue Account,93.33,Protective Clothing&Uniforms,1819Q04_PC00356
Sandwell Metropolitan Borough Council,http://www.sandwell.gov.uk/info/200202/performance_and_spending/3233/government_procurement_cards,24-Jan-2019,Childrens Services,DARLASTON BUILDERS GRO,Childrens Services,17.37,R& M - Building Maint&Imp.,1819Q04_PC00357
Sandwell Metropolitan Borough Council,http://www.sandwell.gov.uk/info/200202/performance_and_spending/3233/government_procurement_cards,24-Jan-2019,Housing & Communities,AMZN Mktp UK MB3Y787M4,Neighbourhoods,1.23,Printing Stationery&Gen Office,1819Q04_PC00358
Sandwell Metropolitan Borough Council,http://www.sandwell.gov.uk/info/200202/performance_and_spending/3233/government_procurement_cards,24-Jan-2019,Housing & Communities,AMZN Mktp UK MB22P1744,Neighbourhoods,4.37,Printing Stationery&Gen Office,1819Q04_PC00359
Sandwell Metropolitan Borough Council,http://www.sandwell.gov.uk/info/200202/performance_and_spending/3233/government_procurement_cards,24-Jan-2019,Housing & Communities,Amazon.co.uk MB9JN87K4,Neighbourhoods,7.39,Materials & Consumables,1819Q04_PC00360
Sandwell Metropolitan Borough Council,http://www.sandwell.gov.uk/info/200202/performance_and_spending/3233/government_procurement_cards,24-Jan-2019,Housing & Communities,BEARWOOD BUILDERS SUPP,Neighbourhoods,10.8,Materials & Consumables,1819Q04_PC00361
Sandwell Metropolitan Borough Council,http://www.sandwell.gov.uk/info/200202/performance_and_spending/3233/government_procurement_cards,24-Jan-2019,Individual School Budgets With Inclusion,SANDWELL & DUD T/O,Individual School Budgets With Inclusion,20.65,Public Transport,1819Q04_PC00362
Sandwell Metropolitan Borough Council,http://www.sandwell.gov.uk/info/200202/performance_and_spending/3233/government_procurement_cards,24-Jan-2019,Regeneration & Growth,AMZN Mktp UK MB2JH07P4,Regeneration And The Economy,57.57,Printing Stationery&Gen Office,1819Q04_PC00363
Sandwell Metropolitan Borough Council,http://www.sandwell.gov.uk/info/200202/performance_and_spending/3233/government_procurement_cards,24-Jan-2019,Housing & Communities,ONLINE.OFFICEDEPOT.CO.,Neighbourhoods,133.97,Materials & Consumables,1819Q04_PC00364
Sandwell Metropolitan Borough Council,http://www.sandwell.gov.uk/info/200202/performance_and_spending/3233/government_procurement_cards,24-Jan-2019,Housing & Communities,ONLINE.OFFICEDEPOT.CO.,Neighbourhoods,4.06,Materials & Consumables,1819Q04_PC00365
Sandwell Metropolitan Borough Council,http://www.sandwell.gov.uk/info/200202/performance_and_spending/3233/government_procurement_cards,24-Jan-2019,Childrens Services,Amazon.co.uk MB2LD99Z4,Childrens Services,18.75,Materials & Consumables,1819Q04_PC00366
Sandwell Metropolitan Borough Council,http://www.sandwell.gov.uk/info/200202/performance_and_spending/3233/government_procurement_cards,24-Jan-2019,Resources (Inc SIU),Trainline,Assistant Chief Executive (Excl SIU),66.65,Public Transport,1819Q04_PC00367
Sandwell Metropolitan Borough Council,http://www.sandwell.gov.uk/info/200202/performance_and_spending/3233/government_procurement_cards,24-Jan-2019,Resources (Inc SIU),Trainline,Assistant Chief Executive (Excl SIU),119.05,Public Transport,1819Q04_PC00368
Sandwell Metropolitan Borough Council,http://www.sandwell.gov.uk/info/200202/performance_and_spending/3233/government_procurement_cards,24-Jan-2019,Housing & Communities,ONLINE.OFFICEDEPOT.CO.,Neighbourhoods,18.54,Printing Stationery&Gen Office,1819Q04_PC00369
Sandwell Metropolitan Borough Council,http://www.sandwell.gov.uk/info/200202/performance_and_spending/3233/government_procurement_cards,24-Jan-2019,Resources (Inc SIU),POST OFFICE COUNTER,Assistant Chief Executive (Excl SIU),38.85,"Postages, Carriage & Courier Services",1819Q04_PC00370
Sandwell Metropolitan Borough Council,http://www.sandwell.gov.uk/info/200202/performance_and_spending/3233/government_procurement_cards,24-Jan-2019,Resources (Inc SIU),HMCOURT-SERVICES.G,Assistant Chief Executive (Excl SIU),110,Professional Services External,1819Q04_PC00371
Sandwell Metropolitan Borough Council,http://www.sandwell.gov.uk/info/200202/performance_and_spending/3233/government_procurement_cards,24-Jan-2019,Regeneration & Growth,AMZN Mktp UK MB6KW2704,Regeneration And The Economy,53.98,Printing Stationery&Gen Office,1819Q04_PC00372
Sandwell Metropolitan Borough Council,http://www.sandwell.gov.uk/info/200202/performance_and_spending/3233/government_procurement_cards,24-Jan-2019,Resources (Inc SIU),Trainline,Assistant Chief Executive (Excl SIU),8.9,Public Transport,1819Q04_PC00373
Sandwell Metropolitan Borough Council,http://www.sandwell.gov.uk/info/200202/performance_and_spending/3233/government_procurement_cards,24-Jan-2019,Housing & Communities,AMZN MKTP UK MB0R987F4,Neighbourhoods,2.2,Materials & Consumables,1819Q04_PC00374
Sandwell Metropolitan Borough Council,http://www.sandwell.gov.uk/info/200202/performance_and_spending/3233/government_procurement_cards,24-Jan-2019,Housing & Communities,AMZN MKTP UK MB73B17N4,Neighbourhoods,6.04,Materials & Consumables,1819Q04_PC00375
Sandwell Metropolitan Borough Council,http://www.sandwell.gov.uk/info/200202/performance_and_spending/3233/government_procurement_cards,24-Jan-2019,Housing & Communities,AMZN MKTP UK MB2RQ17B4,Neighbourhoods,3.83,Materials & Consumables,1819Q04_PC00376
Sandwell Metropolitan Borough Council,http://www.sandwell.gov.uk/info/200202/performance_and_spending/3233/government_procurement_cards,24-Jan-2019,Housing & Communities,AMZN MKTP UK MB0RL7764,Neighbourhoods,5.99,Materials & Consumables,1819Q04_PC00377
Sandwell Metropolitan Borough Council,http://www.sandwell.gov.uk/info/200202/performance_and_spending/3233/government_procurement_cards,24-Jan-2019,Housing & Communities,AMZN MKTP UK MB0DT6734,Neighbourhoods,10.81,Materials & Consumables,1819Q04_PC00378
Sandwell Metropolitan Borough Council,http://www.sandwell.gov.uk/info/200202/performance_and_spending/3233/government_procurement_cards,24-Jan-2019,Childrens Services,Trainline,Childrens Services,41.97,Public Transport,1819Q04_PC00379
Sandwell Metropolitan Borough Council,http://www.sandwell.gov.uk/info/200202/performance_and_spending/3233/government_procurement_cards,24-Jan-2019,Resources (Inc SIU),ONLINE.OFFICEDEPOT.CO.,Assistant Chief Executive (Excl SIU),21.2,Printing Stationery&Gen Office,1819Q04_PC00380
Sandwell Metropolitan Borough Council,http://www.sandwell.gov.uk/info/200202/performance_and_spending/3233/government_procurement_cards,24-Jan-2019,Resources (Inc SIU),ONLINE.OFFICEDEPOT.CO.,Assistant Chief Executive (Excl SIU),31.13,Printing Stationery&Gen Office,1819Q04_PC00381
Sandwell Metropolitan Borough Council,http://www.sandwell.gov.uk/info/200202/performance_and_spending/3233/government_procurement_cards,24-Jan-2019,Housing & Communities,EB  LIBRARIES CONNECTE,Neighbourhoods,50,Conference Expenses,1819Q04_PC00382
Sandwell Metropolitan Borough Council,http://www.sandwell.gov.uk/info/200202/performance_and_spending/3233/government_procurement_cards,24-Jan-2019,Housing & Communities,Amazon.co.uk MB2GR77L4,Neighbourhoods,19.74,Materials & Consumables,1819Q04_PC00383
Sandwell Metropolitan Borough Council,http://www.sandwell.gov.uk/info/200202/performance_and_spending/3233/government_procurement_cards,24-Jan-2019,Resources (Inc SIU),Amazon.co.uk MB1UP5904,Assistant Chief Executive (Excl SIU),15.72,ICT,1819Q04_PC00384
Sandwell Metropolitan Borough Council,http://www.sandwell.gov.uk/info/200202/performance_and_spending/3233/government_procurement_cards,24-Jan-2019,Regeneration & Growth,WWW.RYMAN.CO.UK,Regeneration And The Economy,-24.99,Printing Stationery&Gen Office,1819Q04_PC00385
Sandwell Metropolitan Borough Council,http://www.sandwell.gov.uk/info/200202/performance_and_spending/3233/government_procurement_cards,25-Jan-2019,Childrens Services,KALSI PLASTICS (UK,Childrens Services,27.15,R& M - Building Maint&Imp.,1819Q04_PC00386
Sandwell Metropolitan Borough Council,http://www.sandwell.gov.uk/info/200202/performance_and_spending/3233/government_procurement_cards,25-Jan-2019,Corporate Management,WWW.POSTOFFICESHOP.CO.,Corporate Management,10.83,Printing Stationery&Gen Office,1819Q04_PC00387
Sandwell Metropolitan Borough Council,http://www.sandwell.gov.uk/info/200202/performance_and_spending/3233/government_procurement_cards,25-Jan-2019,Housing & Communities,AMZN MKTP UK MB94E1774,Neighbourhoods,2.87,Materials & Consumables,1819Q04_PC00388
Sandwell Metropolitan Borough Council,http://www.sandwell.gov.uk/info/200202/performance_and_spending/3233/government_procurement_cards,25-Jan-2019,Corporate Management,AMZN Mktp UK MB3Z129C4,Corporate Management,14.57,Printing Stationery&Gen Office,1819Q04_PC00389
Sandwell Metropolitan Borough Council,http://www.sandwell.gov.uk/info/200202/performance_and_spending/3233/government_procurement_cards,25-Jan-2019,Regeneration & Growth,Amazon.co.uk MB3Q829V4,Regeneration And The Economy,35.85,Printing Stationery&Gen Office,1819Q04_PC00390
Sandwell Metropolitan Borough Council,http://www.sandwell.gov.uk/info/200202/performance_and_spending/3233/government_procurement_cards,25-Jan-2019,Resources (Inc SIU),Amazon.co.uk MB24857A4,Assistant Chief Executive (Excl SIU),14.01,Printing Stationery&Gen Office,1819Q04_PC00391
Sandwell Metropolitan Borough Council,http://www.sandwell.gov.uk/info/200202/performance_and_spending/3233/government_procurement_cards,25-Jan-2019,Childrens Services,AMZN Mktp UK MB4KV09F4,Childrens Services,12.91,Printing Stationery&Gen Office,1819Q04_PC00392
Sandwell Metropolitan Borough Council,http://www.sandwell.gov.uk/info/200202/performance_and_spending/3233/government_procurement_cards,25-Jan-2019,Resources (Inc SIU),AMZN Mktp UK MB1DV9954,Assistant Chief Executive (Excl SIU),8.38,Printing Stationery&Gen Office,1819Q04_PC00393
Sandwell Metropolitan Borough Council,http://www.sandwell.gov.uk/info/200202/performance_and_spending/3233/government_procurement_cards,25-Jan-2019,Childrens Services,AMZN Mktp UK MB51B59P4,Childrens Services,4.79,Printing Stationery&Gen Office,1819Q04_PC00394
Sandwell Metropolitan Borough Council,http://www.sandwell.gov.uk/info/200202/performance_and_spending/3233/government_procurement_cards,25-Jan-2019,Adult Social Care Health and Wellbeing - Total,VERSAPAK,Total Adult Social Care,416.67,Equipment & Furniture,1819Q04_PC00395
Sandwell Metropolitan Borough Council,http://www.sandwell.gov.uk/info/200202/performance_and_spending/3233/government_procurement_cards,25-Jan-2019,Adult Social Care Health and Wellbeing - Total,VERSAPAK,Total Adult Social Care,424.33,Equipment & Furniture,1819Q04_PC00396
Sandwell Metropolitan Borough Council,http://www.sandwell.gov.uk/info/200202/performance_and_spending/3233/government_procurement_cards,25-Jan-2019,Regeneration & Growth,AMZN Mktp UK MB10N79K4,Regeneration And The Economy,39.43,ICT,1819Q04_PC00397
Sandwell Metropolitan Borough Council,http://www.sandwell.gov.uk/info/200202/performance_and_spending/3233/government_procurement_cards,25-Jan-2019,Childrens Services,WWW.OFFICEFURNITUREONL,Childrens Services,304,Equipment & Furniture,1819Q04_PC00398
Sandwell Metropolitan Borough Council,http://www.sandwell.gov.uk/info/200202/performance_and_spending/3233/government_procurement_cards,25-Jan-2019,Housing & Communities,WWW.TEIGNVALLEYGLASS.C,Neighbourhoods,152,Materials & Consumables,1819Q04_PC00399
Sandwell Metropolitan Borough Council,http://www.sandwell.gov.uk/info/200202/performance_and_spending/3233/government_procurement_cards,25-Jan-2019,Total Housing Revenue Account,AMZN Mktp UK MB1DM39M4,Total Housing Revenue Account,116.5,Equipment & Furniture,1819Q04_PC00400
Sandwell Metropolitan Borough Council,http://www.sandwell.gov.uk/info/200202/performance_and_spending/3233/government_procurement_cards,25-Jan-2019,Childrens Services,COMPUTER SOLUTIONS CYM,Childrens Services,100,ICT,1819Q04_PC00401
Sandwell Metropolitan Borough Council,http://www.sandwell.gov.uk/info/200202/performance_and_spending/3233/government_procurement_cards,25-Jan-2019,Resources (Inc SIU),AMZN Mktp UK MB5GU8934,Assistant Chief Executive (Excl SIU),25.82,Materials & Consumables,1819Q04_PC00402
Sandwell Metropolitan Borough Council,http://www.sandwell.gov.uk/info/200202/performance_and_spending/3233/government_procurement_cards,25-Jan-2019,Childrens Services,ALDI 109 772,Childrens Services,2.87,Catering Provisions,1819Q04_PC00403
Sandwell Metropolitan Borough Council,http://www.sandwell.gov.uk/info/200202/performance_and_spending/3233/government_procurement_cards,25-Jan-2019,Childrens Services,AMZN Mktp UK MB6LM49T4,Childrens Services,8.99,Printing Stationery&Gen Office,1819Q04_PC00404
Sandwell Metropolitan Borough Council,http://www.sandwell.gov.uk/info/200202/performance_and_spending/3233/government_procurement_cards,25-Jan-2019,Childrens Services,AMZN Mktp UK MB29S19O4,Childrens Services,21.32,Printing Stationery&Gen Office,1819Q04_PC00405
Sandwell Metropolitan Borough Council,http://www.sandwell.gov.uk/info/200202/performance_and_spending/3233/government_procurement_cards,25-Jan-2019,Childrens Services,AMZN Mktp UK MB7WI09O4,Childrens Services,8.99,Printing Stationery&Gen Office,1819Q04_PC00406
Sandwell Metropolitan Borough Council,http://www.sandwell.gov.uk/info/200202/performance_and_spending/3233/government_procurement_cards,25-Jan-2019,Childrens Services,AMZN Mktp UK MB25I19N4,Childrens Services,7.37,Printing Stationery&Gen Office,1819Q04_PC00407
Sandwell Metropolitan Borough Council,http://www.sandwell.gov.uk/info/200202/performance_and_spending/3233/government_procurement_cards,25-Jan-2019,Childrens Services,AMZN Mktp UK MB5601UY4,Childrens Services,21.32,Printing Stationery&Gen Office,1819Q04_PC00408
Sandwell Metropolitan Borough Council,http://www.sandwell.gov.uk/info/200202/performance_and_spending/3233/government_procurement_cards,25-Jan-2019,Childrens Services,WWW.LULLABYTRUST.ORG.U,Childrens Services,59,Printing Stationery&Gen Office,1819Q04_PC00409
Sandwell Metropolitan Borough Council,http://www.sandwell.gov.uk/info/200202/performance_and_spending/3233/government_procurement_cards,25-Jan-2019,Childrens Services,SP   NCT RESOURCES,Childrens Services,14.85,Printing Stationery&Gen Office,1819Q04_PC00410
Sandwell Metropolitan Borough Council,http://www.sandwell.gov.uk/info/200202/performance_and_spending/3233/government_procurement_cards,25-Jan-2019,Individual School Budgets With Inclusion,AMZN Mktp UK MB15F7US4,Individual School Budgets With Inclusion,36.34,ICT,1819Q04_PC00411
Sandwell Metropolitan Borough Council,http://www.sandwell.gov.uk/info/200202/performance_and_spending/3233/government_procurement_cards,25-Jan-2019,Regeneration & Growth,RICS,Regeneration And The Economy,150,Ind. Emp Exp-Staff Dev&Training,1819Q04_PC00412
Sandwell Metropolitan Borough Council,http://www.sandwell.gov.uk/info/200202/performance_and_spending/3233/government_procurement_cards,25-Jan-2019,Childrens Services,ONLINE.OFFICEDEPOT.CO.,Childrens Services,77.49,Printing Stationery&Gen Office,1819Q04_PC00413
Sandwell Metropolitan Borough Council,http://www.sandwell.gov.uk/info/200202/performance_and_spending/3233/government_procurement_cards,25-Jan-2019,Housing & Communities,AMZN MKTP UK MB4NB59V4,Neighbourhoods,23.17,Materials & Consumables,1819Q04_PC00414
Sandwell Metropolitan Borough Council,http://www.sandwell.gov.uk/info/200202/performance_and_spending/3233/government_procurement_cards,25-Jan-2019,Resources (Inc SIU),SANDWELL & DUD SST,Assistant Chief Executive (Excl SIU),11.7,Public Transport,1819Q04_PC00415
Sandwell Metropolitan Borough Council,http://www.sandwell.gov.uk/info/200202/performance_and_spending/3233/government_procurement_cards,28-Jan-2019,Resources (Inc SIU),UPS LTD,Assistant Chief Executive (Excl SIU),19.49,"Postages, Carriage & Courier Services",1819Q04_PC00416
Sandwell Metropolitan Borough Council,http://www.sandwell.gov.uk/info/200202/performance_and_spending/3233/government_procurement_cards,28-Jan-2019,Childrens Services,SCREWFIX DIRECT,Childrens Services,61.34,Fixtures & Fittings,1819Q04_PC00417
Sandwell Metropolitan Borough Council,http://www.sandwell.gov.uk/info/200202/performance_and_spending/3233/government_procurement_cards,28-Jan-2019,Childrens Services,RAWLINS PAINTS,Childrens Services,27.72,R& M - Building Maint&Imp.,1819Q04_PC00418
Sandwell Metropolitan Borough Council,http://www.sandwell.gov.uk/info/200202/performance_and_spending/3233/government_procurement_cards,28-Jan-2019,Childrens Services,VISTAPRINT,Childrens Services,14.29,Materials & Consumables,1819Q04_PC00419
Sandwell Metropolitan Borough Council,http://www.sandwell.gov.uk/info/200202/performance_and_spending/3233/government_procurement_cards,28-Jan-2019,Regeneration & Growth,WWW.THECARDNETWORK.CO.,Regeneration And The Economy,46.25,Materials & Consumables,1819Q04_PC00420
Sandwell Metropolitan Borough Council,http://www.sandwell.gov.uk/info/200202/performance_and_spending/3233/government_procurement_cards,28-Jan-2019,Total Housing Revenue Account,AMZN MKTP UK MB48V4UZ4,Total Housing Revenue Account,27.65,Equipment & Furniture,1819Q04_PC00421
Sandwell Metropolitan Borough Council,http://www.sandwell.gov.uk/info/200202/performance_and_spending/3233/government_procurement_cards,28-Jan-2019,Resources (Inc SIU),SOVEREIGN,Assistant Chief Executive (Excl SIU),22.74,Printing Stationery&Gen Office,1819Q04_PC00422
Sandwell Metropolitan Borough Council,http://www.sandwell.gov.uk/info/200202/performance_and_spending/3233/government_procurement_cards,28-Jan-2019,Adult Social Care Health and Wellbeing - Total,TIMPSON LTD,Total Adult Social Care,12.46,Materials & Consumables,1819Q04_PC00423
Sandwell Metropolitan Borough Council,http://www.sandwell.gov.uk/info/200202/performance_and_spending/3233/government_procurement_cards,28-Jan-2019,Regeneration & Growth,AMZN Mktp UK MB4W28IA4,Regeneration And The Economy,341.25,Printing Stationery&Gen Office,1819Q04_PC00424
Sandwell Metropolitan Borough Council,http://www.sandwell.gov.uk/info/200202/performance_and_spending/3233/government_procurement_cards,28-Jan-2019,Housing & Communities,B & M RETAIL,Neighbourhoods,19.95,Materials & Consumables,1819Q04_PC00425
Sandwell Metropolitan Borough Council,http://www.sandwell.gov.uk/info/200202/performance_and_spending/3233/government_procurement_cards,28-Jan-2019,Resources (Inc SIU),UPS LTD,Assistant Chief Executive (Excl SIU),2.4,"Postages, Carriage & Courier Services",1819Q04_PC00426
Sandwell Metropolitan Borough Council,http://www.sandwell.gov.uk/info/200202/performance_and_spending/3233/government_procurement_cards,28-Jan-2019,Resources (Inc SIU),ONLINE.OFFICEDEPOT.CO.,Assistant Chief Executive (Excl SIU),165.81,Printing Stationery&Gen Office,1819Q04_PC00427
Sandwell Metropolitan Borough Council,http://www.sandwell.gov.uk/info/200202/performance_and_spending/3233/government_procurement_cards,28-Jan-2019,Resources (Inc SIU),Trainline,Assistant Chief Executive (Excl SIU),6.77,Public Transport,1819Q04_PC00428
Sandwell Metropolitan Borough Council,http://www.sandwell.gov.uk/info/200202/performance_and_spending/3233/government_procurement_cards,28-Jan-2019,Childrens Services,AMZN Mktp UK MB4SI7UP4,Childrens Services,5.89,Printing Stationery&Gen Office,1819Q04_PC00429
Sandwell Metropolitan Borough Council,http://www.sandwell.gov.uk/info/200202/performance_and_spending/3233/government_procurement_cards,28-Jan-2019,Regeneration & Growth,Trainline,Regeneration And The Economy,26.15,Public Transport,1819Q04_PC00430
Sandwell Metropolitan Borough Council,http://www.sandwell.gov.uk/info/200202/performance_and_spending/3233/government_procurement_cards,28-Jan-2019,Adult Social Care Health and Wellbeing - Total,ONLINE.OFFICEDEPOT.CO.,Total Adult Social Care,42.84,Printing Stationery&Gen Office,1819Q04_PC00431
Sandwell Metropolitan Borough Council,http://www.sandwell.gov.uk/info/200202/performance_and_spending/3233/government_procurement_cards,28-Jan-2019,Childrens Services,WM MORRISONS STORE,Childrens Services,11.64,Catering Provisions,1819Q04_PC00432
Sandwell Metropolitan Borough Council,http://www.sandwell.gov.uk/info/200202/performance_and_spending/3233/government_procurement_cards,28-Jan-2019,Childrens Services,ONLINE.OFFICEDEPOT.CO.,Childrens Services,3.12,Printing Stationery&Gen Office,1819Q04_PC00433
Sandwell Metropolitan Borough Council,http://www.sandwell.gov.uk/info/200202/performance_and_spending/3233/government_procurement_cards,28-Jan-2019,Childrens Services,ASDA SUPERSTORE 04236,Childrens Services,23.65,Catering Provisions,1819Q04_PC00434
Sandwell Metropolitan Borough Council,http://www.sandwell.gov.uk/info/200202/performance_and_spending/3233/government_procurement_cards,28-Jan-2019,Housing & Communities,SCREWFIX DIRECT,Neighbourhoods,8.32,R& M - Building Maint&Imp.,1819Q04_PC00435
Sandwell Metropolitan Borough Council,http://www.sandwell.gov.uk/info/200202/performance_and_spending/3233/government_procurement_cards,28-Jan-2019,Childrens Services,AMZN Mktp UK MB40Y9IT4,Childrens Services,166.67,Equipment & Furniture,1819Q04_PC00436
Sandwell Metropolitan Borough Council,http://www.sandwell.gov.uk/info/200202/performance_and_spending/3233/government_procurement_cards,28-Jan-2019,Adult Social Care Health and Wellbeing - Total,MOTHERCARE WORLD,Total Adult Social Care,177.5,Ind. Emp Exp-Staff Dev&Training,1819Q04_PC00437
Sandwell Metropolitan Borough Council,http://www.sandwell.gov.uk/info/200202/performance_and_spending/3233/government_procurement_cards,28-Jan-2019,Housing & Communities,ONLINE.OFFICEDEPOT.CO.,Neighbourhoods,149.25,Equipment & Furniture,1819Q04_PC00438
Sandwell Metropolitan Borough Council,http://www.sandwell.gov.uk/info/200202/performance_and_spending/3233/government_procurement_cards,28-Jan-2019,Childrens Services,ONLINE.OFFICEDEPOT.CO.,Childrens Services,42.87,Printing Stationery&Gen Office,1819Q04_PC00439
Sandwell Metropolitan Borough Council,http://www.sandwell.gov.uk/info/200202/performance_and_spending/3233/government_procurement_cards,28-Jan-2019,Childrens Services,ONLINE.OFFICEDEPOT.CO.,Childrens Services,31.05,Printing Stationery&Gen Office,1819Q04_PC00440
Sandwell Metropolitan Borough Council,http://www.sandwell.gov.uk/info/200202/performance_and_spending/3233/government_procurement_cards,28-Jan-2019,Regeneration & Growth,Amazon.co.uk MB1K34RE4,Regeneration And The Economy,126.06,Printing Stationery&Gen Office,1819Q04_PC00441
Sandwell Metropolitan Borough Council,http://www.sandwell.gov.uk/info/200202/performance_and_spending/3233/government_procurement_cards,28-Jan-2019,Adult Social Care Health and Wellbeing - Total,AMZN Mktp UK MB6IY1R14,Total Adult Social Care,16.23,Materials & Consumables,1819Q04_PC00442
Sandwell Metropolitan Borough Council,http://www.sandwell.gov.uk/info/200202/performance_and_spending/3233/government_procurement_cards,28-Jan-2019,Resources (Inc SIU),Amazon.co.uk MB8LE1RJ4,Assistant Chief Executive (Excl SIU),10.74,Printing Stationery&Gen Office,1819Q04_PC00443
Sandwell Metropolitan Borough Council,http://www.sandwell.gov.uk/info/200202/performance_and_spending/3233/government_procurement_cards,29-Jan-2019,Housing & Communities,HITCHED LTD,Neighbourhoods,174.5,Ind. Emp Exp-Advertising,1819Q04_PC00444
Sandwell Metropolitan Borough Council,http://www.sandwell.gov.uk/info/200202/performance_and_spending/3233/government_procurement_cards,29-Jan-2019,Housing & Communities,HITCHED LTD,Neighbourhoods,174.5,Advertising & Publicity,1819Q04_PC00445
Sandwell Metropolitan Borough Council,http://www.sandwell.gov.uk/info/200202/performance_and_spending/3233/government_procurement_cards,29-Jan-2019,Regeneration & Growth,SAINSBURYS SACAT0558,Regeneration And The Economy,3.58,Catering Provisions,1819Q04_PC00446
Sandwell Metropolitan Borough Council,http://www.sandwell.gov.uk/info/200202/performance_and_spending/3233/government_procurement_cards,29-Jan-2019,Housing & Communities,EFFIGY BLINDS LTD,Neighbourhoods,198.72,Equipment & Furniture,1819Q04_PC00447
Sandwell Metropolitan Borough Council,http://www.sandwell.gov.uk/info/200202/performance_and_spending/3233/government_procurement_cards,29-Jan-2019,Regeneration & Growth,THE COAL AUTHORITY,Regeneration And The Economy,323.75,R& M - Building Maint&Imp.,1819Q04_PC00448
Sandwell Metropolitan Borough Council,http://www.sandwell.gov.uk/info/200202/performance_and_spending/3233/government_procurement_cards,29-Jan-2019,Adult Social Care Health and Wellbeing - Total,TESCO STORES 2335,Total Adult Social Care,93.18,Ind. Emp Exp-Staff Dev&Training,1819Q04_PC00449
Sandwell Metropolitan Borough Council,http://www.sandwell.gov.uk/info/200202/performance_and_spending/3233/government_procurement_cards,29-Jan-2019,Housing & Communities,AkzoNobel_UK,Neighbourhoods,6.33,Materials & Consumables,1819Q04_PC00450
Sandwell Metropolitan Borough Council,http://www.sandwell.gov.uk/info/200202/performance_and_spending/3233/government_procurement_cards,29-Jan-2019,Housing & Communities,POUNDSTRETCHER 328,Neighbourhoods,41.58,Materials & Consumables,1819Q04_PC00451
Sandwell Metropolitan Borough Council,http://www.sandwell.gov.uk/info/200202/performance_and_spending/3233/government_procurement_cards,29-Jan-2019,Housing & Communities,ONLINE.OFFICEDEPOT.CO.,Neighbourhoods,14.11,Materials & Consumables,1819Q04_PC00452
Sandwell Metropolitan Borough Council,http://www.sandwell.gov.uk/info/200202/performance_and_spending/3233/government_procurement_cards,29-Jan-2019,Childrens Services,Virgin Trains,Childrens Services,186.1,Public Transport,1819Q04_PC00453
Sandwell Metropolitan Borough Council,http://www.sandwell.gov.uk/info/200202/performance_and_spending/3233/government_procurement_cards,29-Jan-2019,Resources (Inc SIU),ONLINE.OFFICEDEPOT.CO.,Assistant Chief Executive (Excl SIU),10.91,Printing Stationery&Gen Office,1819Q04_PC00454
Sandwell Metropolitan Borough Council,http://www.sandwell.gov.uk/info/200202/performance_and_spending/3233/government_procurement_cards,29-Jan-2019,Regeneration & Growth,Trainline,Regeneration And The Economy,72.6,Public Transport,1819Q04_PC00455
Sandwell Metropolitan Borough Council,http://www.sandwell.gov.uk/info/200202/performance_and_spending/3233/government_procurement_cards,29-Jan-2019,Regeneration & Growth,Trainline,Regeneration And The Economy,36.38,Public Transport,1819Q04_PC00456
Sandwell Metropolitan Borough Council,http://www.sandwell.gov.uk/info/200202/performance_and_spending/3233/government_procurement_cards,29-Jan-2019,Adult Social Care Health and Wellbeing - Total,TESCO STORES 2335,Total Adult Social Care,26.18,Ind. Emp Exp-Staff Dev&Training,1819Q04_PC00457
Sandwell Metropolitan Borough Council,http://www.sandwell.gov.uk/info/200202/performance_and_spending/3233/government_procurement_cards,29-Jan-2019,Regeneration And The Economy Capital,JB COMMERCIAL INTERIOR,#N/A,497,CIP - Infrastructure,1819Q04_PC00458
Sandwell Metropolitan Borough Council,http://www.sandwell.gov.uk/info/200202/performance_and_spending/3233/government_procurement_cards,29-Jan-2019,Housing & Communities,HIGHFIELD HOUSE HO,Neighbourhoods,157.5,Rents,1819Q04_PC00459
Sandwell Metropolitan Borough Council,http://www.sandwell.gov.uk/info/200202/performance_and_spending/3233/government_procurement_cards,29-Jan-2019,Housing & Communities,HIGHFIELD HOUSE HO,Neighbourhoods,262.5,Rents,1819Q04_PC00460
Sandwell Metropolitan Borough Council,http://www.sandwell.gov.uk/info/200202/performance_and_spending/3233/government_procurement_cards,29-Jan-2019,Adult Social Care Health and Wellbeing - Total,Trainline,Total Adult Social Care,205.13,Public Transport,1819Q04_PC00461
Sandwell Metropolitan Borough Council,http://www.sandwell.gov.uk/info/200202/performance_and_spending/3233/government_procurement_cards,30-Jan-2019,Adult Social Care Health and Wellbeing - Total,ARGOS OLDBURY,Total Adult Social Care,94.16,ICT,1819Q04_PC00462
Sandwell Metropolitan Borough Council,http://www.sandwell.gov.uk/info/200202/performance_and_spending/3233/government_procurement_cards,30-Jan-2019,Regeneration & Growth,AMZN Mktp UK MI7IV6CA4,Regeneration And The Economy,8.32,ICT,1819Q04_PC00463
Sandwell Metropolitan Borough Council,http://www.sandwell.gov.uk/info/200202/performance_and_spending/3233/government_procurement_cards,30-Jan-2019,Housing & Communities,ROBANNAS,Neighbourhoods,170,Equipment & Furniture,1819Q04_PC00464
Sandwell Metropolitan Borough Council,http://www.sandwell.gov.uk/info/200202/performance_and_spending/3233/government_procurement_cards,30-Jan-2019,Total Housing Revenue Account,Flextronics,Total Housing Revenue Account,44.84,Materials & Consumables,1819Q04_PC00465
Sandwell Metropolitan Borough Council,http://www.sandwell.gov.uk/info/200202/performance_and_spending/3233/government_procurement_cards,30-Jan-2019,Adult Social Care Health and Wellbeing - Total,ARGOS RETAIL GROUP,Total Adult Social Care,20.82,Catering Equipment,1819Q04_PC00466
Sandwell Metropolitan Borough Council,http://www.sandwell.gov.uk/info/200202/performance_and_spending/3233/government_procurement_cards,30-Jan-2019,Resources (Inc SIU),GET THE PICTURE,Assistant Chief Executive (Excl SIU),76,Equipment & Furniture,1819Q04_PC00467
Sandwell Metropolitan Borough Council,http://www.sandwell.gov.uk/info/200202/performance_and_spending/3233/government_procurement_cards,30-Jan-2019,Housing & Communities,AMZN MKTP UK MI8318CT4,Neighbourhoods,28.29,Materials & Consumables,1819Q04_PC00468
Sandwell Metropolitan Borough Council,http://www.sandwell.gov.uk/info/200202/performance_and_spending/3233/government_procurement_cards,30-Jan-2019,Resources (Inc SIU),HMCOURTS-SERVICE.G,Assistant Chief Executive (Excl SIU),430,Council Tax,1819Q04_PC00469
Sandwell Metropolitan Borough Council,http://www.sandwell.gov.uk/info/200202/performance_and_spending/3233/government_procurement_cards,30-Jan-2019,Housing & Communities,ONLINE.OFFICEDEPOT.CO.,Neighbourhoods,34.04,Printing Stationery&Gen Office,1819Q04_PC00470
Sandwell Metropolitan Borough Council,http://www.sandwell.gov.uk/info/200202/performance_and_spending/3233/government_procurement_cards,30-Jan-2019,Childrens Services,ASDA STORES LTD 5865,Childrens Services,8.35,Materials & Consumables,1819Q04_PC00471
Sandwell Metropolitan Borough Council,http://www.sandwell.gov.uk/info/200202/performance_and_spending/3233/government_procurement_cards,30-Jan-2019,Adult Social Care Health and Wellbeing - Total,Trainline,Total Adult Social Care,86.79,Public Transport,1819Q04_PC00472
Sandwell Metropolitan Borough Council,http://www.sandwell.gov.uk/info/200202/performance_and_spending/3233/government_procurement_cards,30-Jan-2019,Resources (Inc SIU),Trainline,Assistant Chief Executive (Excl SIU),124.34,Public Transport,1819Q04_PC00473
Sandwell Metropolitan Borough Council,http://www.sandwell.gov.uk/info/200202/performance_and_spending/3233/government_procurement_cards,30-Jan-2019,Housing & Communities,ONLINE.OFFICEDEPOT.CO.,Neighbourhoods,114.46,ICT,1819Q04_PC00474
Sandwell Metropolitan Borough Council,http://www.sandwell.gov.uk/info/200202/performance_and_spending/3233/government_procurement_cards,30-Jan-2019,Regeneration & Growth,AMZN Mktp UK MI7US2OH4,Regeneration And The Economy,256.65,ICT,1819Q04_PC00475
Sandwell Metropolitan Borough Council,http://www.sandwell.gov.uk/info/200202/performance_and_spending/3233/government_procurement_cards,30-Jan-2019,Adult Social Care Health and Wellbeing - Total,Trainline,Total Adult Social Care,195.56,Public Transport,1819Q04_PC00476
Sandwell Metropolitan Borough Council,http://www.sandwell.gov.uk/info/200202/performance_and_spending/3233/government_procurement_cards,31-Jan-2019,Regeneration & Growth,TIMPSON LTD,Regeneration And The Economy,5.42,R & M - Security,1819Q04_PC00477
Sandwell Metropolitan Borough Council,http://www.sandwell.gov.uk/info/200202/performance_and_spending/3233/government_procurement_cards,31-Jan-2019,Resources (Inc SIU),MASTA LTD,Assistant Chief Executive (Excl SIU),100,Professional Services External,1819Q04_PC00478
Sandwell Metropolitan Borough Council,http://www.sandwell.gov.uk/info/200202/performance_and_spending/3233/government_procurement_cards,31-Jan-2019,Childrens Services,SCREWFIX DIRECT,Childrens Services,79.12,Fixtures & Fittings,1819Q04_PC00479
Sandwell Metropolitan Borough Council,http://www.sandwell.gov.uk/info/200202/performance_and_spending/3233/government_procurement_cards,31-Jan-2019,Regeneration & Growth,WWW.SLINGSBY.COM,Regeneration And The Economy,80.95,Grounds Maint&Improvements,1819Q04_PC00480
Sandwell Metropolitan Borough Council,http://www.sandwell.gov.uk/info/200202/performance_and_spending/3233/government_procurement_cards,31-Jan-2019,Housing & Communities,AMZN Mktp UK MI8YN5FA4,Neighbourhoods,12.06,Equipment & Furniture,1819Q04_PC00481
Sandwell Metropolitan Borough Council,http://www.sandwell.gov.uk/info/200202/performance_and_spending/3233/government_procurement_cards,31-Jan-2019,Adult Social Care Health and Wellbeing - Total,SAINSBURYS 0558,Total Adult Social Care,56.87,Oth Services-Other Establishme,1819Q04_PC00482
Sandwell Metropolitan Borough Council,http://www.sandwell.gov.uk/info/200202/performance_and_spending/3233/government_procurement_cards,31-Jan-2019,Adult Social Care Health and Wellbeing - Total,POUNDLAND LTD 1729,Total Adult Social Care,27.71,Equipment & Furniture,1819Q04_PC00483
Sandwell Metropolitan Borough Council,http://www.sandwell.gov.uk/info/200202/performance_and_spending/3233/government_procurement_cards,31-Jan-2019,Resources (Inc SIU),NEXT DIRECTORY,Assistant Chief Executive (Excl SIU),71.67,Protective Clothing&Uniforms,1819Q04_PC00484
Sandwell Metropolitan Borough Council,http://www.sandwell.gov.uk/info/200202/performance_and_spending/3233/government_procurement_cards,31-Jan-2019,Total Housing Revenue Account,SANDWELL & DUD T/O,Total Housing Revenue Account,5.3,Public Transport,1819Q04_PC00485
Sandwell Metropolitan Borough Council,http://www.sandwell.gov.uk/info/200202/performance_and_spending/3233/government_procurement_cards,31-Jan-2019,Regeneration & Growth,AMZN MKTP UK MI5580FJ4,Regeneration And The Economy,135.83,ICT,1819Q04_PC00486
Sandwell Metropolitan Borough Council,http://www.sandwell.gov.uk/info/200202/performance_and_spending/3233/government_procurement_cards,31-Jan-2019,Adult Social Care Health and Wellbeing - Total,ONLINE.OFFICEDEPOT.CO.,Public Health,54.72,Printing Stationery&Gen Office,1819Q04_PC00487
Sandwell Metropolitan Borough Council,http://www.sandwell.gov.uk/info/200202/performance_and_spending/3233/government_procurement_cards,31-Jan-2019,Childrens Services,CANALSIDE HOLDINGS LIM,Childrens Services,33,Catering Provisions,1819Q04_PC00488
Sandwell Metropolitan Borough Council,http://www.sandwell.gov.uk/info/200202/performance_and_spending/3233/government_procurement_cards,31-Jan-2019,Housing & Communities,BEARWOOD BUILDERS SUPP,Neighbourhoods,16.2,Materials & Consumables,1819Q04_PC00489
Sandwell Metropolitan Borough Council,http://www.sandwell.gov.uk/info/200202/performance_and_spending/3233/government_procurement_cards,31-Jan-2019,Adult Social Care Health and Wellbeing - Total,Trainline,Total Adult Social Care,221.6,Public Transport,1819Q04_PC00490
Sandwell Metropolitan Borough Council,http://www.sandwell.gov.uk/info/200202/performance_and_spending/3233/government_procurement_cards,31-Jan-2019,Adult Social Care Health and Wellbeing - Total,Trainline,Total Adult Social Care,63.7,Public Transport,1819Q04_PC00491
Sandwell Metropolitan Borough Council,http://www.sandwell.gov.uk/info/200202/performance_and_spending/3233/government_procurement_cards,31-Jan-2019,Total Housing Revenue Account,TRAVIS PERKINS,Total Housing Revenue Account,29.57,Materials & Consumables,1819Q04_PC00492
Sandwell Metropolitan Borough Council,http://www.sandwell.gov.uk/info/200202/performance_and_spending/3233/government_procurement_cards,31-Jan-2019,Housing & Communities,WILKO RETAIL LIMIT,Neighbourhoods,25,Materials & Consumables,1819Q04_PC00493
Sandwell Metropolitan Borough Council,http://www.sandwell.gov.uk/info/200202/performance_and_spending/3233/government_procurement_cards,31-Jan-2019,Housing & Communities,THE TOOLS MARKET GREAT,Neighbourhoods,25,Materials & Consumables,1819Q04_PC00494
Sandwell Metropolitan Borough Council,http://www.sandwell.gov.uk/info/200202/performance_and_spending/3233/government_procurement_cards,01-Feb-2019,Childrens Services,OUTDOOR EDUCATION ADVI,Childrens Services,200,Ind. Emp Exp-Staff Dev&Training,1819Q04_PC00495
Sandwell Metropolitan Borough Council,http://www.sandwell.gov.uk/info/200202/performance_and_spending/3233/government_procurement_cards,01-Feb-2019,Childrens Services,OUTDOOR EDUCATION ADVI,Childrens Services,200,Ind. Emp Exp-Staff Dev&Training,1819Q04_PC00496
Sandwell Metropolitan Borough Council,http://www.sandwell.gov.uk/info/200202/performance_and_spending/3233/government_procurement_cards,01-Feb-2019,Childrens Services,HTTPS://WWW.GDJONES.CO,Childrens Services,459.27,Energy Costs-Oil,1819Q04_PC00497
Sandwell Metropolitan Borough Council,http://www.sandwell.gov.uk/info/200202/performance_and_spending/3233/government_procurement_cards,01-Feb-2019,Childrens Services,SCHOOLLETTINGS.ORG,Childrens Services,100,Hire of Facilities,1819Q04_PC00498
Sandwell Metropolitan Borough Council,http://www.sandwell.gov.uk/info/200202/performance_and_spending/3233/government_procurement_cards,01-Feb-2019,Total Housing Revenue Account,AMZN MKTP UK MI1Z16464,Total Housing Revenue Account,114.67,Protective Clothing&Uniforms,1819Q04_PC00499
Sandwell Metropolitan Borough Council,http://www.sandwell.gov.uk/info/200202/performance_and_spending/3233/government_procurement_cards,01-Feb-2019,Total Housing Revenue Account,GOVERNMENT EVENTS,Total Housing Revenue Account,322.15,Ind. Emp Exp-Staff Dev&Training,1819Q04_PC00500
Sandwell Metropolitan Borough Council,http://www.sandwell.gov.uk/info/200202/performance_and_spending/3233/government_procurement_cards,01-Feb-2019,Resources (Inc SIU),ARCO LTD,Assistant Chief Executive (Excl SIU),76.77,Protective Clothing&Uniforms,1819Q04_PC00501
Sandwell Metropolitan Borough Council,http://www.sandwell.gov.uk/info/200202/performance_and_spending/3233/government_procurement_cards,01-Feb-2019,Adult Social Care Health and Wellbeing - Total,AMZN Mktp UK MI8DN94C4,Total Adult Social Care,27.47,ICT,1819Q04_PC00502
Sandwell Metropolitan Borough Council,http://www.sandwell.gov.uk/info/200202/performance_and_spending/3233/government_procurement_cards,01-Feb-2019,Regeneration & Growth,Trainline,Regeneration And The Economy,-93,Public Transport,1819Q04_PC00503
Sandwell Metropolitan Borough Council,http://www.sandwell.gov.uk/info/200202/performance_and_spending/3233/government_procurement_cards,01-Feb-2019,Regeneration & Growth,Trainline,Regeneration And The Economy,96.15,Public Transport,1819Q04_PC00504
Sandwell Metropolitan Borough Council,http://www.sandwell.gov.uk/info/200202/performance_and_spending/3233/government_procurement_cards,01-Feb-2019,Individual School Budgets With Inclusion,ONLINE.OFFICEDEPOT.CO.,Individual School Budgets With Inclusion,34.44,Printing Stationery&Gen Office,1819Q04_PC00505
Sandwell Metropolitan Borough Council,http://www.sandwell.gov.uk/info/200202/performance_and_spending/3233/government_procurement_cards,01-Feb-2019,Regeneration & Growth,SAINSBURYS SACAT0558,Regeneration And The Economy,3,Catering Provisions,1819Q04_PC00506
Sandwell Metropolitan Borough Council,http://www.sandwell.gov.uk/info/200202/performance_and_spending/3233/government_procurement_cards,01-Feb-2019,Adult Social Care Health and Wellbeing - Total,ONLINE.OFFICEDEPOT.CO.,Public Health,7.6,Printing Stationery&Gen Office,1819Q04_PC00507
Sandwell Metropolitan Borough Council,http://www.sandwell.gov.uk/info/200202/performance_and_spending/3233/government_procurement_cards,01-Feb-2019,Regeneration & Growth,SAINSBURYS SACAT0558,Regeneration And The Economy,30,Materials & Consumables,1819Q04_PC00508
Sandwell Metropolitan Borough Council,http://www.sandwell.gov.uk/info/200202/performance_and_spending/3233/government_procurement_cards,01-Feb-2019,Total Housing Revenue Account,Trainline,Total Housing Revenue Account,210.62,Public Transport,1819Q04_PC00509
Sandwell Metropolitan Borough Council,http://www.sandwell.gov.uk/info/200202/performance_and_spending/3233/government_procurement_cards,01-Feb-2019,Regeneration & Growth,PAYPAL  CLAIRE,Regeneration And The Economy,105,Subscriptions,1819Q04_PC00510
Sandwell Metropolitan Borough Council,http://www.sandwell.gov.uk/info/200202/performance_and_spending/3233/government_procurement_cards,01-Feb-2019,Corporate Management,ONLINE.OFFICEDEPOT.CO.,Corporate Management,100.13,Printing Stationery&Gen Office,1819Q04_PC00511
Sandwell Metropolitan Borough Council,http://www.sandwell.gov.uk/info/200202/performance_and_spending/3233/government_procurement_cards,01-Feb-2019,Regeneration & Growth,Trainline,Regeneration And The Economy,96.15,Public Transport,1819Q04_PC00512
Sandwell Metropolitan Borough Council,http://www.sandwell.gov.uk/info/200202/performance_and_spending/3233/government_procurement_cards,01-Feb-2019,Resources (Inc SIU),TEXTHELPLTD,Assistant Chief Executive (Excl SIU),384,Materials & Consumables,1819Q04_PC00513
Sandwell Metropolitan Borough Council,http://www.sandwell.gov.uk/info/200202/performance_and_spending/3233/government_procurement_cards,01-Feb-2019,Individual School Budgets With Inclusion,PREMIER MOBILE DISCOS,Individual School Budgets With Inclusion,250,Professional Services External,1819Q04_PC00514
Sandwell Metropolitan Borough Council,http://www.sandwell.gov.uk/info/200202/performance_and_spending/3233/government_procurement_cards,01-Feb-2019,Individual School Budgets With Inclusion,PREMIER MOBILE DISCOS,Individual School Budgets With Inclusion,50,Professional Services External,1819Q04_PC00515
Sandwell Metropolitan Borough Council,http://www.sandwell.gov.uk/info/200202/performance_and_spending/3233/government_procurement_cards,01-Feb-2019,Childrens Services,BOOTS.COM,Childrens Services,46.2,Materials & Consumables,1819Q04_PC00516
Sandwell Metropolitan Borough Council,http://www.sandwell.gov.uk/info/200202/performance_and_spending/3233/government_procurement_cards,01-Feb-2019,Childrens Services,WILKO.COM,Childrens Services,32.92,Materials & Consumables,1819Q04_PC00517
Sandwell Metropolitan Borough Council,http://www.sandwell.gov.uk/info/200202/performance_and_spending/3233/government_procurement_cards,01-Feb-2019,Childrens Services,AMZN Mktp UK MI5WF3484,Childrens Services,12.9,Materials & Consumables,1819Q04_PC00518
Sandwell Metropolitan Borough Council,http://www.sandwell.gov.uk/info/200202/performance_and_spending/3233/government_procurement_cards,01-Feb-2019,Childrens Services,AMZN Mktp UK MI1GE7404,Childrens Services,18.8,Materials & Consumables,1819Q04_PC00519
Sandwell Metropolitan Borough Council,http://www.sandwell.gov.uk/info/200202/performance_and_spending/3233/government_procurement_cards,01-Feb-2019,Childrens Services,ASDA GROCERIES ONLINE,Childrens Services,-1.33,Catering Provisions,1819Q04_PC00520
Sandwell Metropolitan Borough Council,http://www.sandwell.gov.uk/info/200202/performance_and_spending/3233/government_procurement_cards,01-Feb-2019,Childrens Services,ASDA GROCERIES ONLINE,Childrens Services,72.72,Catering Provisions,1819Q04_PC00521
Sandwell Metropolitan Borough Council,http://www.sandwell.gov.uk/info/200202/performance_and_spending/3233/government_procurement_cards,01-Feb-2019,Adult Social Care Health and Wellbeing - Total,TRAVELODGE,Total Adult Social Care,34.58,Rent Allowances Local Scheme,1819Q04_PC00522
Sandwell Metropolitan Borough Council,http://www.sandwell.gov.uk/info/200202/performance_and_spending/3233/government_procurement_cards,04-Feb-2019,Childrens Services,WWW.GEAR4MUSIC.COM,Childrens Services,61.23,Materials & Consumables,1819Q04_PC00523
Sandwell Metropolitan Borough Council,http://www.sandwell.gov.uk/info/200202/performance_and_spending/3233/government_procurement_cards,04-Feb-2019,Adult Social Care Health and Wellbeing - Total,WWW.DOMINOS.CO.UK,Public Health,71.63,Catering Provisions,1819Q04_PC00524
Sandwell Metropolitan Borough Council,http://www.sandwell.gov.uk/info/200202/performance_and_spending/3233/government_procurement_cards,04-Feb-2019,Childrens Services,BOOTS.COM,Childrens Services,56.53,Materials & Consumables,1819Q04_PC00525
Sandwell Metropolitan Borough Council,http://www.sandwell.gov.uk/info/200202/performance_and_spending/3233/government_procurement_cards,04-Feb-2019,Childrens Services,BOOTS.COM,Childrens Services,50,Materials & Consumables,1819Q04_PC00526
Sandwell Metropolitan Borough Council,http://www.sandwell.gov.uk/info/200202/performance_and_spending/3233/government_procurement_cards,04-Feb-2019,Housing & Communities,POUNDLAND LTD 1729,Neighbourhoods,0.87,Cleaning,1819Q04_PC00527
Sandwell Metropolitan Borough Council,http://www.sandwell.gov.uk/info/200202/performance_and_spending/3233/government_procurement_cards,04-Feb-2019,Housing & Communities,WWW.BALLICOM.CO.UK,Neighbourhoods,447.25,ICT,1819Q04_PC00528
Sandwell Metropolitan Borough Council,http://www.sandwell.gov.uk/info/200202/performance_and_spending/3233/government_procurement_cards,04-Feb-2019,Childrens Services,POUNDLAND,Childrens Services,6.67,Printing Stationery&Gen Office,1819Q04_PC00529
Sandwell Metropolitan Borough Council,http://www.sandwell.gov.uk/info/200202/performance_and_spending/3233/government_procurement_cards,04-Feb-2019,Housing & Communities,AQUAID FRANCHISING LTD,Neighbourhoods,31.25,Catering Provisions,1819Q04_PC00530
Sandwell Metropolitan Borough Council,http://www.sandwell.gov.uk/info/200202/performance_and_spending/3233/government_procurement_cards,04-Feb-2019,Housing & Communities,AMZN Mktp UK MI1BN5ZB4,Neighbourhoods,9.31,Materials & Consumables,1819Q04_PC00531
Sandwell Metropolitan Borough Council,http://www.sandwell.gov.uk/info/200202/performance_and_spending/3233/government_procurement_cards,04-Feb-2019,Childrens Services,WIGLEY DIY LTD,Childrens Services,79.48,R& M - Building Maint&Imp.,1819Q04_PC00532
Sandwell Metropolitan Borough Council,http://www.sandwell.gov.uk/info/200202/performance_and_spending/3233/government_procurement_cards,04-Feb-2019,Childrens Services,ASDA GROCERIES ONLINE,Childrens Services,-2.2,Catering Provisions,1819Q04_PC00533
Sandwell Metropolitan Borough Council,http://www.sandwell.gov.uk/info/200202/performance_and_spending/3233/government_procurement_cards,04-Feb-2019,Childrens Services,ASDA GROCERIES ONLINE,Childrens Services,100.66,Catering Provisions,1819Q04_PC00534
Sandwell Metropolitan Borough Council,http://www.sandwell.gov.uk/info/200202/performance_and_spending/3233/government_procurement_cards,04-Feb-2019,Regeneration & Growth,SAINSBURYS SACAT0558,Regeneration And The Economy,3,Catering Provisions,1819Q04_PC00535
Sandwell Metropolitan Borough Council,http://www.sandwell.gov.uk/info/200202/performance_and_spending/3233/government_procurement_cards,04-Feb-2019,Childrens Services,WM MORRISONS STORE,Childrens Services,3.33,Catering Provisions,1819Q04_PC00536
Sandwell Metropolitan Borough Council,http://www.sandwell.gov.uk/info/200202/performance_and_spending/3233/government_procurement_cards,04-Feb-2019,Childrens Services,WM MORRISONS STORE,Childrens Services,15.08,Catering Provisions,1819Q04_PC00537
Sandwell Metropolitan Borough Council,http://www.sandwell.gov.uk/info/200202/performance_and_spending/3233/government_procurement_cards,04-Feb-2019,Individual School Budgets With Inclusion,Amazon.co.uk MI0YO0LU4,Individual School Budgets With Inclusion,11.94,Printing Stationery&Gen Office,1819Q04_PC00538
Sandwell Metropolitan Borough Council,http://www.sandwell.gov.uk/info/200202/performance_and_spending/3233/government_procurement_cards,04-Feb-2019,Total Housing Revenue Account,AMZN Mktp UK MI71P6LL4,Total Housing Revenue Account,6.63,Equipment & Furniture,1819Q04_PC00539
Sandwell Metropolitan Borough Council,http://www.sandwell.gov.uk/info/200202/performance_and_spending/3233/government_procurement_cards,04-Feb-2019,Total Housing Revenue Account,AMZN Mktp UK MI3S73L24,Total Housing Revenue Account,32.5,Equipment & Furniture,1819Q04_PC00540
Sandwell Metropolitan Borough Council,http://www.sandwell.gov.uk/info/200202/performance_and_spending/3233/government_procurement_cards,04-Feb-2019,Adult Social Care Health and Wellbeing - Total,PARK INN BIRMINGHAM WE,Total Adult Social Care,625,Hire of Facilities,1819Q04_PC00541
Sandwell Metropolitan Borough Council,http://www.sandwell.gov.uk/info/200202/performance_and_spending/3233/government_procurement_cards,04-Feb-2019,Adult Social Care Health and Wellbeing - Total,PARK INN BIRMINGHAM WE,Total Adult Social Care,255.83,Hire of Facilities,1819Q04_PC00542
Sandwell Metropolitan Borough Council,http://www.sandwell.gov.uk/info/200202/performance_and_spending/3233/government_procurement_cards,04-Feb-2019,Adult Social Care Health and Wellbeing - Total,PARK INN BIRMINGHAM WE,Total Adult Social Care,255.83,Hire of Facilities,1819Q04_PC00543
Sandwell Metropolitan Borough Council,http://www.sandwell.gov.uk/info/200202/performance_and_spending/3233/government_procurement_cards,04-Feb-2019,Adult Social Care Health and Wellbeing - Total,PARK INN BIRMINGHAM WE,Total Adult Social Care,255.83,Hire of Facilities,1819Q04_PC00544
Sandwell Metropolitan Borough Council,http://www.sandwell.gov.uk/info/200202/performance_and_spending/3233/government_procurement_cards,04-Feb-2019,Regeneration & Growth,RS COMPONENTS,Regeneration And The Economy,35.12,R& M - Building Maint&Imp.,1819Q04_PC00545
Sandwell Metropolitan Borough Council,http://www.sandwell.gov.uk/info/200202/performance_and_spending/3233/government_procurement_cards,04-Feb-2019,Housing & Communities,CRADLEY HEATH T/O,Neighbourhoods,7.2,Public Transport,1819Q04_PC00546
Sandwell Metropolitan Borough Council,http://www.sandwell.gov.uk/info/200202/performance_and_spending/3233/government_procurement_cards,04-Feb-2019,Housing & Communities,APPLE ONLINE STORE GBP,Neighbourhoods,124.96,ICT,1819Q04_PC00547
Sandwell Metropolitan Borough Council,http://www.sandwell.gov.uk/info/200202/performance_and_spending/3233/government_procurement_cards,04-Feb-2019,Housing & Communities,AMZN Mktp UK MI6TX9Z84,Neighbourhoods,3.12,Materials & Consumables,1819Q04_PC00548
Sandwell Metropolitan Borough Council,http://www.sandwell.gov.uk/info/200202/performance_and_spending/3233/government_procurement_cards,04-Feb-2019,Resources (Inc SIU),Amazon Prime MI8P39Z74,Assistant Chief Executive (Excl SIU),6.66,Printing Stationery&Gen Office,1819Q04_PC00549
Sandwell Metropolitan Borough Council,http://www.sandwell.gov.uk/info/200202/performance_and_spending/3233/government_procurement_cards,04-Feb-2019,Resources (Inc SIU),ONLINE.OFFICEDEPOT.CO.,Assistant Chief Executive (Excl SIU),30.89,Equipment & Furniture,1819Q04_PC00550
Sandwell Metropolitan Borough Council,http://www.sandwell.gov.uk/info/200202/performance_and_spending/3233/government_procurement_cards,04-Feb-2019,Resources Capital,AMZN Mktp UK MI8OE9NY4,#N/A,23.87,ICT,1819Q04_PC00551
Sandwell Metropolitan Borough Council,http://www.sandwell.gov.uk/info/200202/performance_and_spending/3233/government_procurement_cards,04-Feb-2019,Resources (Inc SIU),GOOGLE  CLOUD_01B69F-A,Assistant Chief Executive (Excl SIU),95.22,ICT,1819Q04_PC00552
Sandwell Metropolitan Borough Council,http://www.sandwell.gov.uk/info/200202/performance_and_spending/3233/government_procurement_cards,04-Feb-2019,Housing & Communities,AMZN Mktp UK MI59943X4,Neighbourhoods,66.63,ICT,1819Q04_PC00553
Sandwell Metropolitan Borough Council,http://www.sandwell.gov.uk/info/200202/performance_and_spending/3233/government_procurement_cards,04-Feb-2019,Housing & Communities,Amazon.co.uk MI6AX43D4,Neighbourhoods,11.2,Materials & Consumables,1819Q04_PC00554
Sandwell Metropolitan Borough Council,http://www.sandwell.gov.uk/info/200202/performance_and_spending/3233/government_procurement_cards,04-Feb-2019,Childrens Services,THE RANGE,Childrens Services,8.32,Grounds Maint&Improvements,1819Q04_PC00555
Sandwell Metropolitan Borough Council,http://www.sandwell.gov.uk/info/200202/performance_and_spending/3233/government_procurement_cards,04-Feb-2019,Childrens Services,SCREWFIX STAFFORD,Childrens Services,9.15,R& M - Building Maint&Imp.,1819Q04_PC00556
Sandwell Metropolitan Borough Council,http://www.sandwell.gov.uk/info/200202/performance_and_spending/3233/government_procurement_cards,04-Feb-2019,Housing & Communities,AMZN Mktp UK MI9446ZP4,Neighbourhoods,33.32,Equipment & Furniture,1819Q04_PC00557
Sandwell Metropolitan Borough Council,http://www.sandwell.gov.uk/info/200202/performance_and_spending/3233/government_procurement_cards,04-Feb-2019,Housing & Communities,COUNTRY BASKETS,Neighbourhoods,25,Materials & Consumables,1819Q04_PC00558
Sandwell Metropolitan Borough Council,http://www.sandwell.gov.uk/info/200202/performance_and_spending/3233/government_procurement_cards,04-Feb-2019,Housing & Communities,COUNTRY BASKETS,Neighbourhoods,2.87,Materials & Consumables,1819Q04_PC00559
Sandwell Metropolitan Borough Council,http://www.sandwell.gov.uk/info/200202/performance_and_spending/3233/government_procurement_cards,04-Feb-2019,Resources (Inc SIU),Amazon.co.uk MI9DC6324,Assistant Chief Executive (Excl SIU),5,Printing Stationery&Gen Office,1819Q04_PC00560
Sandwell Metropolitan Borough Council,http://www.sandwell.gov.uk/info/200202/performance_and_spending/3233/government_procurement_cards,04-Feb-2019,Individual School Budgets With Inclusion,Amazon.co.uk MI7HH3NZ4,Individual School Budgets With Inclusion,23.73,ICT,1819Q04_PC00561
Sandwell Metropolitan Borough Council,http://www.sandwell.gov.uk/info/200202/performance_and_spending/3233/government_procurement_cards,04-Feb-2019,Individual School Budgets With Inclusion,AMZN Mktp UK MI6ZL8NJ4,Individual School Budgets With Inclusion,31.29,ICT,1819Q04_PC00562
Sandwell Metropolitan Borough Council,http://www.sandwell.gov.uk/info/200202/performance_and_spending/3233/government_procurement_cards,04-Feb-2019,Individual School Budgets With Inclusion,AMZN Mktp UK MI6SK8NB4,Individual School Budgets With Inclusion,19.57,Printing Stationery&Gen Office,1819Q04_PC00563
Sandwell Metropolitan Borough Council,http://www.sandwell.gov.uk/info/200202/performance_and_spending/3233/government_procurement_cards,04-Feb-2019,Individual School Budgets With Inclusion,AMZN Mktp UK MI95I8344,Individual School Budgets With Inclusion,22.85,Printing Stationery&Gen Office,1819Q04_PC00564
Sandwell Metropolitan Borough Council,http://www.sandwell.gov.uk/info/200202/performance_and_spending/3233/government_procurement_cards,04-Feb-2019,Individual School Budgets With Inclusion,AMZN Mktp UK MI95753V4,Individual School Budgets With Inclusion,26.93,Printing Stationery&Gen Office,1819Q04_PC00565
Sandwell Metropolitan Borough Council,http://www.sandwell.gov.uk/info/200202/performance_and_spending/3233/government_procurement_cards,04-Feb-2019,Total Housing Revenue Account,AMZN Mktp UK MI9387NF4,Total Housing Revenue Account,17.07,ICT,1819Q04_PC00566
Sandwell Metropolitan Borough Council,http://www.sandwell.gov.uk/info/200202/performance_and_spending/3233/government_procurement_cards,04-Feb-2019,Housing & Communities,Audible.co.uk,Neighbourhoods,7.99,Employee Expenses,1819Q04_PC00567
Sandwell Metropolitan Borough Council,http://www.sandwell.gov.uk/info/200202/performance_and_spending/3233/government_procurement_cards,05-Feb-2019,Housing & Communities,SPRINGFIELDS CO UK,Neighbourhoods,7.9,Civic Events,1819Q04_PC00568
Sandwell Metropolitan Borough Council,http://www.sandwell.gov.uk/info/200202/performance_and_spending/3233/government_procurement_cards,05-Feb-2019,Housing & Communities,WWW.MERLINARCHERY.CO.U,Neighbourhoods,38.19,Civic Events,1819Q04_PC00569
Sandwell Metropolitan Borough Council,http://www.sandwell.gov.uk/info/200202/performance_and_spending/3233/government_procurement_cards,05-Feb-2019,Resources (Inc SIU),ONLINE.OFFICEDEPOT.CO.,Assistant Chief Executive (Excl SIU),23.71,Equipment & Furniture,1819Q04_PC00570
Sandwell Metropolitan Borough Council,http://www.sandwell.gov.uk/info/200202/performance_and_spending/3233/government_procurement_cards,05-Feb-2019,Childrens Services,PAYPAL  CAREERDEVEL,Childrens Services,30,Conference Expenses,1819Q04_PC00571
Sandwell Metropolitan Borough Council,http://www.sandwell.gov.uk/info/200202/performance_and_spending/3233/government_procurement_cards,05-Feb-2019,Childrens Services,AMOMA RESERVATIO,Childrens Services,111.73,Conference Expenses,1819Q04_PC00572
Sandwell Metropolitan Borough Council,http://www.sandwell.gov.uk/info/200202/performance_and_spending/3233/government_procurement_cards,05-Feb-2019,Childrens Services,Trainline,Childrens Services,67.87,Public Transport,1819Q04_PC00573
Sandwell Metropolitan Borough Council,http://www.sandwell.gov.uk/info/200202/performance_and_spending/3233/government_procurement_cards,05-Feb-2019,Housing & Communities,AMZN Mktp UK MI4FW3JH4,Neighbourhoods,54.98,ICT,1819Q04_PC00574
Sandwell Metropolitan Borough Council,http://www.sandwell.gov.uk/info/200202/performance_and_spending/3233/government_procurement_cards,05-Feb-2019,Housing & Communities,AMZN Mktp UK MI40B4J94,Neighbourhoods,3,Materials & Consumables,1819Q04_PC00575
Sandwell Metropolitan Borough Council,http://www.sandwell.gov.uk/info/200202/performance_and_spending/3233/government_procurement_cards,05-Feb-2019,Resources (Inc SIU),Trainline,Assistant Chief Executive (Excl SIU),-2.9,Public Transport,1819Q04_PC00576
Sandwell Metropolitan Borough Council,http://www.sandwell.gov.uk/info/200202/performance_and_spending/3233/government_procurement_cards,05-Feb-2019,Housing & Communities,POUNDLAND LTD 1729,Neighbourhoods,1.67,ICT,1819Q04_PC00577
Sandwell Metropolitan Borough Council,http://www.sandwell.gov.uk/info/200202/performance_and_spending/3233/government_procurement_cards,05-Feb-2019,Childrens Services,Amazon.co.uk MI5CE2J04,Childrens Services,15.66,R& M - Building Maint&Imp.,1819Q04_PC00578
Sandwell Metropolitan Borough Council,http://www.sandwell.gov.uk/info/200202/performance_and_spending/3233/government_procurement_cards,05-Feb-2019,Childrens Services,Amazon.co.uk MI0VP4JV4,Childrens Services,11,R& M - Building Maint&Imp.,1819Q04_PC00579
Sandwell Metropolitan Borough Council,http://www.sandwell.gov.uk/info/200202/performance_and_spending/3233/government_procurement_cards,05-Feb-2019,Regeneration & Growth,ARCO LTD,Regeneration And The Economy,67.19,Protective Clothing&Uniforms,1819Q04_PC00580
Sandwell Metropolitan Borough Council,http://www.sandwell.gov.uk/info/200202/performance_and_spending/3233/government_procurement_cards,05-Feb-2019,Childrens Services,WWW.GEAR4MUSIC.COM,Childrens Services,63.32,Materials & Consumables,1819Q04_PC00581
Sandwell Metropolitan Borough Council,http://www.sandwell.gov.uk/info/200202/performance_and_spending/3233/government_procurement_cards,05-Feb-2019,Regeneration & Growth,WWW.CIBSE.ORG,Regeneration And The Economy,1215,Ind. Emp Exp-Staff Dev&Training,1819Q04_PC00582
Sandwell Metropolitan Borough Council,http://www.sandwell.gov.uk/info/200202/performance_and_spending/3233/government_procurement_cards,05-Feb-2019,Regeneration & Growth,WWW.DESIGNOFFICESUPPLI,Regeneration And The Economy,249.6,Printing Stationery&Gen Office,1819Q04_PC00583
Sandwell Metropolitan Borough Council,http://www.sandwell.gov.uk/info/200202/performance_and_spending/3233/government_procurement_cards,05-Feb-2019,Corporate Management,TAXI FARE BY VERIFONE,Corporate Management,13.11,Public Transport,1819Q04_PC00584
Sandwell Metropolitan Borough Council,http://www.sandwell.gov.uk/info/200202/performance_and_spending/3233/government_procurement_cards,05-Feb-2019,Corporate Management,SUMUP   BAHADAR JAGPAL,Corporate Management,7.8,Public Transport,1819Q04_PC00585
Sandwell Metropolitan Borough Council,http://www.sandwell.gov.uk/info/200202/performance_and_spending/3233/government_procurement_cards,05-Feb-2019,Housing & Communities,AURAPRINTUK,Neighbourhoods,144,Materials & Consumables,1819Q04_PC00586
Sandwell Metropolitan Borough Council,http://www.sandwell.gov.uk/info/200202/performance_and_spending/3233/government_procurement_cards,05-Feb-2019,Housing & Communities,ETSY.COM - ALLPICKED,Neighbourhoods,113.51,Materials & Consumables,1819Q04_PC00587
Sandwell Metropolitan Borough Council,http://www.sandwell.gov.uk/info/200202/performance_and_spending/3233/government_procurement_cards,05-Feb-2019,Childrens Services,Amazon.co.uk MI2ST03O4,Childrens Services,22.48,Materials & Consumables,1819Q04_PC00588
Sandwell Metropolitan Borough Council,http://www.sandwell.gov.uk/info/200202/performance_and_spending/3233/government_procurement_cards,05-Feb-2019,Childrens Services,Trainline,Childrens Services,89.9,Public Transport,1819Q04_PC00589
Sandwell Metropolitan Borough Council,http://www.sandwell.gov.uk/info/200202/performance_and_spending/3233/government_procurement_cards,05-Feb-2019,Childrens Services,Trainline,Childrens Services,301.69,Public Transport,1819Q04_PC00590
Sandwell Metropolitan Borough Council,http://www.sandwell.gov.uk/info/200202/performance_and_spending/3233/government_procurement_cards,05-Feb-2019,Adult Social Care Health and Wellbeing - Total,WEBSITES AND BLOGS LTD,Total Adult Social Care,49.96,ICT,1819Q04_PC00591
Sandwell Metropolitan Borough Council,http://www.sandwell.gov.uk/info/200202/performance_and_spending/3233/government_procurement_cards,05-Feb-2019,Adult Social Care Health and Wellbeing - Total,TRAVELODGE,Total Adult Social Care,185,Rent Allowances Local Scheme,1819Q04_PC00592
Sandwell Metropolitan Borough Council,http://www.sandwell.gov.uk/info/200202/performance_and_spending/3233/government_procurement_cards,05-Feb-2019,Childrens Services,Trainline,Childrens Services,12.16,Public Transport,1819Q04_PC00593
Sandwell Metropolitan Borough Council,http://www.sandwell.gov.uk/info/200202/performance_and_spending/3233/government_procurement_cards,05-Feb-2019,Childrens Services,POST OFFICE COUNTER,Childrens Services,6.5,"Postages, Carriage & Courier Services",1819Q04_PC00594
Sandwell Metropolitan Borough Council,http://www.sandwell.gov.uk/info/200202/performance_and_spending/3233/government_procurement_cards,05-Feb-2019,Childrens Services,WATERSTONES.COM,Childrens Services,53.99,Ind. Emp Exp-Staff Dev&Training,1819Q04_PC00595
Sandwell Metropolitan Borough Council,http://www.sandwell.gov.uk/info/200202/performance_and_spending/3233/government_procurement_cards,05-Feb-2019,Regeneration & Growth,WWW.SHOP4GROUP.CO.UK,Regeneration And The Economy,19.49,Equipment & Furniture,1819Q04_PC00596
Sandwell Metropolitan Borough Council,http://www.sandwell.gov.uk/info/200202/performance_and_spending/3233/government_procurement_cards,05-Feb-2019,Regeneration & Growth,ONLINE.OFFICEDEPOT.CO.,Regeneration And The Economy,27.55,Printing Stationery&Gen Office,1819Q04_PC00597
Sandwell Metropolitan Borough Council,http://www.sandwell.gov.uk/info/200202/performance_and_spending/3233/government_procurement_cards,06-Feb-2019,Childrens Services,ONLINE.OFFICEDEPOT.CO.,Childrens Services,60.41,Printing Stationery&Gen Office,1819Q04_PC00598
Sandwell Metropolitan Borough Council,http://www.sandwell.gov.uk/info/200202/performance_and_spending/3233/government_procurement_cards,06-Feb-2019,Housing & Communities,Amazon.co.uk MI3FY7AF4,Neighbourhoods,74.97,ICT,1819Q04_PC00599
Sandwell Metropolitan Borough Council,http://www.sandwell.gov.uk/info/200202/performance_and_spending/3233/government_procurement_cards,06-Feb-2019,Housing & Communities,Amazon Prime MI5CC4T84,Neighbourhoods,7.99,"Postages, Carriage & Courier Services",1819Q04_PC00600
Sandwell Metropolitan Borough Council,http://www.sandwell.gov.uk/info/200202/performance_and_spending/3233/government_procurement_cards,06-Feb-2019,Resources (Inc SIU),HMCOURTS-SERVICE.G,Assistant Chief Executive (Excl SIU),82.5,Council Tax,1819Q04_PC00601
Sandwell Metropolitan Borough Council,http://www.sandwell.gov.uk/info/200202/performance_and_spending/3233/government_procurement_cards,06-Feb-2019,Childrens Services,VISTAPRINT,Childrens Services,17.73,Materials & Consumables,1819Q04_PC00602
Sandwell Metropolitan Borough Council,http://www.sandwell.gov.uk/info/200202/performance_and_spending/3233/government_procurement_cards,06-Feb-2019,Regeneration & Growth,AMZN Mktp UK MI0FM1AZ4,Regeneration And The Economy,12.4,ICT,1819Q04_PC00603
Sandwell Metropolitan Borough Council,http://www.sandwell.gov.uk/info/200202/performance_and_spending/3233/government_procurement_cards,06-Feb-2019,Regeneration & Growth,AMZN Mktp UK MI19U6AC4,Regeneration And The Economy,6.99,Printing Stationery&Gen Office,1819Q04_PC00604
Sandwell Metropolitan Borough Council,http://www.sandwell.gov.uk/info/200202/performance_and_spending/3233/government_procurement_cards,06-Feb-2019,Adult Social Care Health and Wellbeing - Total,CBA HYPERIONICS,Total Adult Social Care,33.28,ICT,1819Q04_PC00605
